{"text_format":"1","workbook":"xlsx","n_sheets":12,"sheets":["Summary","Short Meta Descriptions","Duplicate H1 Tags","Short Title Tags","Short Meta Keywords","Short H1 Tags","Long H1 Tags","URL Hyphens","301s","Remaining Urls_1","Spidered Urls_1","Report Data"],"not_rendered":{"charts":5,"images":1,"macros":1,"external_links":0,"defined_names":2,"comments":1,"pivot_tables":0},"unopened":[],"bounds":{"document_bytes":16777216,"sheet_cells":100000,"rows_first":2000,"rows_last":500,"rows_between":2000,"halvings":0,"cell_chars":16384,"cell_head_chars":4096},"cells_cut":0,"cells_raw":0,"read":"whole","date_system":"1900"}

{"sheet":"Summary","index":0,"n_rows":381,"n_cols":11,"rows_kept":381,"cut":false,"hidden":false,"merged":[[41,1,142,1],[160,1,261,1],[279,1,380,1],[41,3,41,7],[160,3,160,7],[279,3,279,7]]}
[]
[]
[null,"Architecture Diagnostic Report (ADR):  www.thesearchagency.com"]
[null,"Report Period: 10/27/2010"]
[]
[null,"Issue Summary",null,null,null,null,null,null,"Issue Percentage"]
[null,"All Issues by Severity",null,null,null,"All Issues by Severity",null,null,"Count of Issues by Severity"]
[null,null,null,null,null,"Severity","Count"]
[null,null,null,null,null,"Critical",{"$f":"I143","v":39}]
[null,null,null,null,null,"Warning",{"$f":"I262","v":11}]
[null,null,null,null,null,"Info",{"$f":"I381","v":91}]
[null,null,null,null,null,"Total Issues",{"$f":"SUM(G9:G11)","v":141}]
[]
[]
[]
[]
[]
[]
[null,null,null,null,null,"URL Summary"]
[null,null,null,null,null,"Type","# of URLs"]
[null,null,null,null,null,"Issues",{"$f":"'Report Data'!L8","v":39}]
[null,null,null,null,null,"Non-issues",{"$f":"'Report Data'!L9","v":61}]
[null,null,null,null,null,"Total URLs Crawled",{"$f":"SUM(G21:G22)","v":100}]
[]
[null,"Issue Breakdown by Severity"]
[null,"Critical"]
[]
[]
[]
[]
[]
[]
[]
[]
[]
[]
[]
[]
[]
[]
[]
[null,"CRITICAL","Tab Names","Long Desc",null,null,null,null,"Issue Count","Critical %","Total Issue %"]
[null,null,"Short Meta Descriptions","Pages found with meta description tag shorter than 125 characters",null,null,null,null,37,{"$f":"I43/$I$143","v":0.94871794871794868},{"$f":"IF($G$12<>0,I43/$G$12,0)","v":0.26241134751773049}]
[null,null,"Duplicate H1 Tags","Pages found with duplicate H1 tags",null,null,null,null,2,{"$f":"I44/$I$143","v":5.128205128205128E-2},{"$f":"IF($G$12<>0,I44/$G$12,0)","v":1.4184397163120567E-2}]
[null,null,0,{"$error":"#N/A"},null,null,null,null,{"$error":"#N/A"},{"$f":"I45/$I$143","v":{"$error":"#N/A"}},{"$f":"IF($G$12<>0,I45/$G$12,0)","v":{"$error":"#N/A"}}]
[null,null,0,{"$error":"#N/A"},null,null,null,null,{"$error":"#N/A"},{"$error":"#N/A"},{"$error":"#N/A"}]
[null,null,0,{"$error":"#N/A"},null,null,null,null,{"$error":"#N/A"},{"$error":"#N/A"},{"$error":"#N/A"}]
[null,null,0,{"$error":"#N/A"},null,null,null,null,{"$error":"#N/A"},{"$error":"#N/A"},{"$error":"#N/A"}]
[null,null,0,{"$error":"#N/A"},null,null,null,null,{"$error":"#N/A"},{"$error":"#N/A"},{"$error":"#N/A"}]
[null,null,0,{"$error":"#N/A"},null,null,null,null,{"$error":"#N/A"},{"$error":"#N/A"},{"$error":"#N/A"}]
[null,null,0,{"$error":"#N/A"},null,null,null,null,{"$error":"#N/A"},{"$error":"#N/A"},{"$error":"#N/A"}]
[null,null,0,{"$error":"#N/A"},null,null,null,null,{"$error":"#N/A"},{"$error":"#N/A"},{"$error":"#N/A"}]
[null,null,0,{"$error":"#N/A"},null,null,null,null,{"$error":"#N/A"},{"$error":"#N/A"},{"$error":"#N/A"}]
[null,null,0,{"$error":"#N/A"},null,null,null,null,{"$error":"#N/A"},{"$error":"#N/A"},{"$error":"#N/A"}]
[null,null,0,{"$error":"#N/A"},null,null,null,null,{"$error":"#N/A"},{"$error":"#N/A"},{"$error":"#N/A"}]
[null,null,0,{"$error":"#N/A"},null,null,null,null,{"$error":"#N/A"},{"$error":"#N/A"},{"$error":"#N/A"}]
[null,null,0,{"$error":"#N/A"},null,null,null,null,{"$error":"#N/A"},{"$f":"I57/$I$143","v":{"$error":"#N/A"}},{"$f":"IF($G$12<>0,I57/$G$12,0)","v":{"$error":"#N/A"}}]
[null,null,0,{"$error":"#N/A"},null,null,null,null,{"$error":"#N/A"},{"$error":"#N/A"},{"$error":"#N/A"}]
[null,null,0,{"$error":"#N/A"},null,null,null,null,{"$error":"#N/A"},{"$error":"#N/A"},{"$error":"#N/A"}]
[null,null,0,{"$error":"#N/A"},null,null,null,null,{"$error":"#N/A"},{"$error":"#N/A"},{"$error":"#N/A"}]
[null,null,0,{"$error":"#N/A"},null,null,null,null,{"$error":"#N/A"},{"$error":"#N/A"},{"$error":"#N/A"}]
[null,null,0,{"$error":"#N/A"},null,null,null,null,{"$error":"#N/A"},{"$error":"#N/A"},{"$error":"#N/A"}]
[null,null,0,{"$error":"#N/A"},null,null,null,null,{"$error":"#N/A"},{"$error":"#N/A"},{"$error":"#N/A"}]
[null,null,0,{"$error":"#N/A"},null,null,null,null,{"$error":"#N/A"},{"$error":"#N/A"},{"$error":"#N/A"}]
[null,null,0,{"$error":"#N/A"},null,null,null,null,{"$error":"#N/A"},{"$error":"#N/A"},{"$error":"#N/A"}]
[null,null,0,{"$error":"#N/A"},null,null,null,null,{"$error":"#N/A"},{"$error":"#N/A"},{"$error":"#N/A"}]
[null,null,0,{"$error":"#N/A"},null,null,null,null,{"$error":"#N/A"},{"$error":"#N/A"},{"$error":"#N/A"}]
[null,null,0,{"$error":"#N/A"},null,null,null,null,{"$error":"#N/A"},{"$error":"#N/A"},{"$error":"#N/A"}]
[null,null,0,{"$error":"#N/A"},null,null,null,null,{"$error":"#N/A"},{"$error":"#N/A"},{"$error":"#N/A"}]
[null,null,0,{"$error":"#N/A"},null,null,null,null,{"$error":"#N/A"},{"$error":"#N/A"},{"$error":"#N/A"}]
[null,null,0,{"$error":"#N/A"},null,null,null,null,{"$error":"#N/A"},{"$error":"#N/A"},{"$error":"#N/A"}]
[null,null,0,{"$error":"#N/A"},null,null,null,null,{"$error":"#N/A"},{"$error":"#N/A"},{"$error":"#N/A"}]
[null,null,0,{"$error":"#N/A"},null,null,null,null,{"$error":"#N/A"},{"$error":"#N/A"},{"$error":"#N/A"}]
[null,null,0,{"$error":"#N/A"},null,null,null,null,{"$error":"#N/A"},{"$error":"#N/A"},{"$error":"#N/A"}]
[null,null,0,{"$error":"#N/A"},null,null,null,null,{"$error":"#N/A"},{"$error":"#N/A"},{"$error":"#N/A"}]
[null,null,0,{"$error":"#N/A"},null,null,null,null,{"$error":"#N/A"},{"$error":"#N/A"},{"$error":"#N/A"}]
[null,null,0,{"$error":"#N/A"},null,null,null,null,{"$error":"#N/A"},{"$error":"#N/A"},{"$error":"#N/A"}]
[null,null,0,{"$error":"#N/A"},null,null,null,null,{"$error":"#N/A"},{"$error":"#N/A"},{"$error":"#N/A"}]
[null,null,0,{"$error":"#N/A"},null,null,null,null,{"$error":"#N/A"},{"$error":"#N/A"},{"$error":"#N/A"}]
[null,null,0,{"$error":"#N/A"},null,null,null,null,{"$error":"#N/A"},{"$error":"#N/A"},{"$error":"#N/A"}]
[null,null,0,{"$error":"#N/A"},null,null,null,null,{"$error":"#N/A"},{"$error":"#N/A"},{"$error":"#N/A"}]
[null,null,0,{"$error":"#N/A"},null,null,null,null,{"$error":"#N/A"},{"$error":"#N/A"},{"$error":"#N/A"}]
[null,null,0,{"$error":"#N/A"},null,null,null,null,{"$error":"#N/A"},{"$error":"#N/A"},{"$error":"#N/A"}]
[null,null,0,{"$error":"#N/A"},null,null,null,null,{"$error":"#N/A"},{"$error":"#N/A"},{"$error":"#N/A"}]
[null,null,0,{"$error":"#N/A"},null,null,null,null,{"$error":"#N/A"},{"$error":"#N/A"},{"$error":"#N/A"}]
[null,null,0,{"$error":"#N/A"},null,null,null,null,{"$error":"#N/A"},{"$error":"#N/A"},{"$error":"#N/A"}]
[null,null,0,{"$error":"#N/A"},null,null,null,null,{"$error":"#N/A"},{"$error":"#N/A"},{"$error":"#N/A"}]
[null,null,0,{"$error":"#N/A"},null,null,null,null,{"$error":"#N/A"},{"$error":"#N/A"},{"$error":"#N/A"}]
[null,null,0,{"$error":"#N/A"},null,null,null,null,{"$error":"#N/A"},{"$error":"#N/A"},{"$error":"#N/A"}]
[null,null,0,{"$error":"#N/A"},null,null,null,null,{"$error":"#N/A"},{"$error":"#N/A"},{"$error":"#N/A"}]
[null,null,0,{"$error":"#N/A"},null,null,null,null,{"$error":"#N/A"},{"$error":"#N/A"},{"$error":"#N/A"}]
[null,null,0,{"$error":"#N/A"},null,null,null,null,{"$error":"#N/A"},{"$error":"#N/A"},{"$error":"#N/A"}]
[null,null,0,{"$error":"#N/A"},null,null,null,null,{"$error":"#N/A"},{"$error":"#N/A"},{"$error":"#N/A"}]
[null,null,0,{"$error":"#N/A"},null,null,null,null,{"$error":"#N/A"},{"$error":"#N/A"},{"$error":"#N/A"}]
[null,null,0,{"$error":"#N/A"},null,null,null,null,{"$error":"#N/A"},{"$error":"#N/A"},{"$error":"#N/A"}]
[null,null,0,{"$error":"#N/A"},null,null,null,null,{"$error":"#N/A"},{"$error":"#N/A"},{"$error":"#N/A"}]
[null,null,0,{"$error":"#N/A"},null,null,null,null,{"$error":"#N/A"},{"$error":"#N/A"},{"$error":"#N/A"}]
[null,null,0,{"$error":"#N/A"},null,null,null,null,{"$error":"#N/A"},{"$error":"#N/A"},{"$error":"#N/A"}]
[null,null,0,{"$error":"#N/A"},null,null,null,null,{"$error":"#N/A"},{"$error":"#N/A"},{"$error":"#N/A"}]
[null,null,0,{"$error":"#N/A"},null,null,null,null,{"$error":"#N/A"},{"$error":"#N/A"},{"$error":"#N/A"}]
[null,null,0,{"$error":"#N/A"},null,null,null,null,{"$error":"#N/A"},{"$error":"#N/A"},{"$error":"#N/A"}]
[null,null,0,{"$error":"#N/A"},null,null,null,null,{"$error":"#N/A"},{"$error":"#N/A"},{"$error":"#N/A"}]
[null,null,0,{"$error":"#N/A"},null,null,null,null,{"$error":"#N/A"},{"$error":"#N/A"},{"$error":"#N/A"}]
[null,null,0,{"$error":"#N/A"},null,null,null,null,{"$error":"#N/A"},{"$error":"#N/A"},{"$error":"#N/A"}]
[null,null,0,{"$error":"#N/A"},null,null,null,null,{"$error":"#N/A"},{"$error":"#N/A"},{"$error":"#N/A"}]
[null,null,0,{"$error":"#N/A"},null,null,null,null,{"$error":"#N/A"},{"$error":"#N/A"},{"$error":"#N/A"}]
[null,null,0,{"$error":"#N/A"},null,null,null,null,{"$error":"#N/A"},{"$error":"#N/A"},{"$error":"#N/A"}]
[null,null,0,{"$error":"#N/A"},null,null,null,null,{"$error":"#N/A"},{"$f":"I108/$I$143","v":{"$error":"#N/A"}},{"$f":"IF($G$12<>0,I108/$G$12,0)","v":{"$error":"#N/A"}}]
[null,null,0,{"$error":"#N/A"},null,null,null,null,{"$error":"#N/A"},{"$error":"#N/A"},{"$error":"#N/A"}]
[null,null,0,{"$error":"#N/A"},null,null,null,null,{"$error":"#N/A"},{"$error":"#N/A"},{"$error":"#N/A"}]
[null,null,0,{"$error":"#N/A"},null,null,null,null,{"$error":"#N/A"},{"$error":"#N/A"},{"$error":"#N/A"}]
[null,null,0,{"$error":"#N/A"},null,null,null,null,{"$error":"#N/A"},{"$error":"#N/A"},{"$error":"#N/A"}]
[null,null,0,{"$error":"#N/A"},null,null,null,null,{"$error":"#N/A"},{"$error":"#N/A"},{"$error":"#N/A"}]
[null,null,0,{"$error":"#N/A"},null,null,null,null,{"$error":"#N/A"},{"$error":"#N/A"},{"$error":"#N/A"}]
[null,null,0,{"$error":"#N/A"},null,null,null,null,{"$error":"#N/A"},{"$error":"#N/A"},{"$error":"#N/A"}]
[null,null,0,{"$error":"#N/A"},null,null,null,null,{"$error":"#N/A"},{"$error":"#N/A"},{"$error":"#N/A"}]
[null,null,0,{"$error":"#N/A"},null,null,null,null,{"$error":"#N/A"},{"$error":"#N/A"},{"$error":"#N/A"}]
[null,null,0,{"$error":"#N/A"},null,null,null,null,{"$error":"#N/A"},{"$error":"#N/A"},{"$error":"#N/A"}]
[null,null,0,{"$error":"#N/A"},null,null,null,null,{"$error":"#N/A"},{"$error":"#N/A"},{"$error":"#N/A"}]
[null,null,0,{"$error":"#N/A"},null,null,null,null,{"$error":"#N/A"},{"$error":"#N/A"},{"$error":"#N/A"}]
[null,null,0,{"$error":"#N/A"},null,null,null,null,{"$error":"#N/A"},{"$error":"#N/A"},{"$error":"#N/A"}]
[null,null,0,{"$error":"#N/A"},null,null,null,null,{"$error":"#N/A"},{"$error":"#N/A"},{"$error":"#N/A"}]
[null,null,0,{"$error":"#N/A"},null,null,null,null,{"$error":"#N/A"},{"$error":"#N/A"},{"$error":"#N/A"}]
[null,null,0,{"$error":"#N/A"},null,null,null,null,{"$error":"#N/A"},{"$error":"#N/A"},{"$error":"#N/A"}]
[null,null,0,{"$error":"#N/A"},null,null,null,null,{"$error":"#N/A"},{"$error":"#N/A"},{"$error":"#N/A"}]
[null,null,0,{"$error":"#N/A"},null,null,null,null,{"$error":"#N/A"},{"$error":"#N/A"},{"$error":"#N/A"}]
[null,null,0,{"$error":"#N/A"},null,null,null,null,{"$error":"#N/A"},{"$error":"#N/A"},{"$error":"#N/A"}]
[null,null,0,{"$error":"#N/A"},null,null,null,null,{"$error":"#N/A"},{"$error":"#N/A"},{"$error":"#N/A"}]
[null,null,0,{"$error":"#N/A"},null,null,null,null,{"$error":"#N/A"},{"$error":"#N/A"},{"$error":"#N/A"}]
[null,null,0,{"$error":"#N/A"},null,null,null,null,{"$error":"#N/A"},{"$error":"#N/A"},{"$error":"#N/A"}]
[null,null,0,{"$error":"#N/A"},null,null,null,null,{"$error":"#N/A"},{"$error":"#N/A"},{"$error":"#N/A"}]
[null,null,0,{"$error":"#N/A"},null,null,null,null,{"$error":"#N/A"},{"$error":"#N/A"},{"$error":"#N/A"}]
[null,null,0,{"$error":"#N/A"},null,null,null,null,{"$error":"#N/A"},{"$error":"#N/A"},{"$error":"#N/A"}]
[null,null,0,{"$error":"#N/A"},null,null,null,null,{"$error":"#N/A"},{"$error":"#N/A"},{"$error":"#N/A"}]
[null,null,0,{"$error":"#N/A"},null,null,null,null,{"$error":"#N/A"},{"$error":"#N/A"},{"$error":"#N/A"}]
[null,null,0,{"$error":"#N/A"},null,null,null,null,{"$error":"#N/A"},{"$error":"#N/A"},{"$error":"#N/A"}]
[null,null,0,{"$error":"#N/A"},null,null,null,null,{"$error":"#N/A"},{"$error":"#N/A"},{"$error":"#N/A"}]
[null,null,0,{"$error":"#N/A"},null,null,null,null,{"$error":"#N/A"},{"$error":"#N/A"},{"$error":"#N/A"}]
[null,null,0,{"$error":"#N/A"},null,null,null,null,{"$error":"#N/A"},{"$error":"#N/A"},{"$error":"#N/A"}]
[null,null,0,{"$error":"#N/A"},null,null,null,null,{"$error":"#N/A"},{"$error":"#N/A"},{"$error":"#N/A"}]
[null,null,0,{"$error":"#N/A"},null,null,null,null,{"$error":"#N/A"},{"$error":"#N/A"},{"$error":"#N/A"}]
[null,null,0,{"$error":"#N/A"},null,null,null,null,{"$error":"#N/A"},{"$error":"#N/A"},{"$error":"#N/A"}]
[null,null,null,null,null,null,null,null,{"$f":"SUM(I43:I44)","v":39},1,0.27659574468085107]
[]
[null,"Warning"]
[]
[null,null,null,null,{"$f":"SUM(E53:E66)","v":0}]
[]
[]
[]
[]
[]
[]
[]
[]
[]
[]
[]
[]
[]
[null,"WARNING","Tab Names","Long Desc",null,null,null,null,"Issue Count","Warning %","Total Issue %"]
[null,null,"Short Title Tags","Pages found with title tag shorter than 20 characters",null,null,null,null,11,{"$f":"I162/$I$262","v":1},{"$f":"IF($G$12<>0,I162/$G$12,0)","v":7.8014184397163122E-2}]
[null,null,0,{"$error":"#N/A"},null,null,null,null,{"$error":"#N/A"},{"$error":"#N/A"},{"$error":"#N/A"}]
[null,null,0,{"$error":"#N/A"},null,null,null,null,{"$error":"#N/A"},{"$error":"#N/A"},{"$error":"#N/A"}]
[null,null,0,{"$error":"#N/A"},null,null,null,null,{"$error":"#N/A"},{"$error":"#N/A"},{"$error":"#N/A"}]
[null,null,0,{"$error":"#N/A"},null,null,null,null,{"$error":"#N/A"},{"$error":"#N/A"},{"$error":"#N/A"}]
[null,null,0,{"$error":"#N/A"},null,null,null,null,{"$error":"#N/A"},{"$error":"#N/A"},{"$error":"#N/A"}]
[null,null,0,{"$error":"#N/A"},null,null,null,null,{"$error":"#N/A"},{"$f":"I168/$I$262","v":{"$error":"#N/A"}},{"$f":"IF($G$12<>0,I168/$G$12,0)","v":{"$error":"#N/A"}}]
[null,null,0,{"$error":"#N/A"},null,null,null,null,{"$error":"#N/A"},{"$error":"#N/A"},{"$error":"#N/A"}]
[null,null,0,{"$error":"#N/A"},null,null,null,null,{"$error":"#N/A"},{"$error":"#N/A"},{"$error":"#N/A"}]
[null,null,0,{"$error":"#N/A"},null,null,null,null,{"$error":"#N/A"},{"$error":"#N/A"},{"$error":"#N/A"}]
[null,null,0,{"$error":"#N/A"},null,null,null,null,{"$error":"#N/A"},{"$error":"#N/A"},{"$error":"#N/A"}]
[null,null,0,{"$error":"#N/A"},null,null,null,null,{"$error":"#N/A"},{"$error":"#N/A"},{"$error":"#N/A"}]
[null,null,0,{"$error":"#N/A"},null,null,null,null,{"$error":"#N/A"},{"$error":"#N/A"},{"$error":"#N/A"}]
[null,null,0,{"$error":"#N/A"},null,null,null,null,{"$error":"#N/A"},{"$error":"#N/A"},{"$error":"#N/A"}]
[null,null,0,{"$error":"#N/A"},null,null,null,null,{"$error":"#N/A"},{"$error":"#N/A"},{"$error":"#N/A"}]
[null,null,0,{"$error":"#N/A"},null,null,null,null,{"$error":"#N/A"},{"$error":"#N/A"},{"$error":"#N/A"}]
[null,null,0,{"$error":"#N/A"},null,null,null,null,{"$error":"#N/A"},{"$error":"#N/A"},{"$error":"#N/A"}]
[null,null,0,{"$error":"#N/A"},null,null,null,null,{"$error":"#N/A"},{"$error":"#N/A"},{"$error":"#N/A"}]
[null,null,0,{"$error":"#N/A"},null,null,null,null,{"$error":"#N/A"},{"$error":"#N/A"},{"$error":"#N/A"}]
[null,null,0,{"$error":"#N/A"},null,null,null,null,{"$error":"#N/A"},{"$error":"#N/A"},{"$error":"#N/A"}]
[null,null,0,{"$error":"#N/A"},null,null,null,null,{"$error":"#N/A"},{"$error":"#N/A"},{"$error":"#N/A"}]
[null,null,0,{"$error":"#N/A"},null,null,null,null,{"$error":"#N/A"},{"$error":"#N/A"},{"$error":"#N/A"}]
[null,null,0,{"$error":"#N/A"},null,null,null,null,{"$error":"#N/A"},{"$error":"#N/A"},{"$error":"#N/A"}]
[null,null,0,{"$error":"#N/A"},null,null,null,null,{"$error":"#N/A"},{"$error":"#N/A"},{"$error":"#N/A"}]
[null,null,0,{"$error":"#N/A"},null,null,null,null,{"$error":"#N/A"},{"$error":"#N/A"},{"$error":"#N/A"}]
[null,null,0,{"$error":"#N/A"},null,null,null,null,{"$error":"#N/A"},{"$error":"#N/A"},{"$error":"#N/A"}]
[null,null,0,{"$error":"#N/A"},null,null,null,null,{"$error":"#N/A"},{"$error":"#N/A"},{"$error":"#N/A"}]
[null,null,0,{"$error":"#N/A"},null,null,null,null,{"$error":"#N/A"},{"$error":"#N/A"},{"$error":"#N/A"}]
[null,null,0,{"$error":"#N/A"},null,null,null,null,{"$error":"#N/A"},{"$error":"#N/A"},{"$error":"#N/A"}]
[null,null,0,{"$error":"#N/A"},null,null,null,null,{"$error":"#N/A"},{"$error":"#N/A"},{"$error":"#N/A"}]
[null,null,0,{"$error":"#N/A"},null,null,null,null,{"$error":"#N/A"},{"$error":"#N/A"},{"$error":"#N/A"}]
[null,null,0,{"$error":"#N/A"},null,null,null,null,{"$error":"#N/A"},{"$error":"#N/A"},{"$error":"#N/A"}]
[null,null,0,{"$error":"#N/A"},null,null,null,null,{"$error":"#N/A"},{"$error":"#N/A"},{"$error":"#N/A"}]
[null,null,0,{"$error":"#N/A"},null,null,null,null,{"$error":"#N/A"},{"$error":"#N/A"},{"$error":"#N/A"}]
[null,null,0,{"$error":"#N/A"},null,null,null,null,{"$error":"#N/A"},{"$error":"#N/A"},{"$error":"#N/A"}]
[null,null,0,{"$error":"#N/A"},null,null,null,null,{"$error":"#N/A"},{"$error":"#N/A"},{"$error":"#N/A"}]
[null,null,0,{"$error":"#N/A"},null,null,null,null,{"$error":"#N/A"},{"$error":"#N/A"},{"$error":"#N/A"}]
[null,null,0,{"$error":"#N/A"},null,null,null,null,{"$error":"#N/A"},{"$error":"#N/A"},{"$error":"#N/A"}]
[null,null,0,{"$error":"#N/A"},null,null,null,null,{"$error":"#N/A"},{"$error":"#N/A"},{"$error":"#N/A"}]
[null,null,0,{"$error":"#N/A"},null,null,null,null,{"$error":"#N/A"},{"$error":"#N/A"},{"$error":"#N/A"}]
[null,null,0,{"$error":"#N/A"},null,null,null,null,{"$error":"#N/A"},{"$error":"#N/A"},{"$error":"#N/A"}]
[null,null,0,{"$error":"#N/A"},null,null,null,null,{"$error":"#N/A"},{"$error":"#N/A"},{"$error":"#N/A"}]
[null,null,0,{"$error":"#N/A"},null,null,null,null,{"$error":"#N/A"},{"$error":"#N/A"},{"$error":"#N/A"}]
[null,null,0,{"$error":"#N/A"},null,null,null,null,{"$error":"#N/A"},{"$error":"#N/A"},{"$error":"#N/A"}]
[null,null,0,{"$error":"#N/A"},null,null,null,null,{"$error":"#N/A"},{"$error":"#N/A"},{"$error":"#N/A"}]
[null,null,0,{"$error":"#N/A"},null,null,null,null,{"$error":"#N/A"},{"$error":"#N/A"},{"$error":"#N/A"}]
[null,null,0,{"$error":"#N/A"},null,null,null,null,{"$error":"#N/A"},{"$error":"#N/A"},{"$error":"#N/A"}]
[null,null,0,{"$error":"#N/A"},null,null,null,null,{"$error":"#N/A"},{"$error":"#N/A"},{"$error":"#N/A"}]
[null,null,0,{"$error":"#N/A"},null,null,null,null,{"$error":"#N/A"},{"$error":"#N/A"},{"$error":"#N/A"}]
[null,null,0,{"$error":"#N/A"},null,null,null,null,{"$error":"#N/A"},{"$error":"#N/A"},{"$error":"#N/A"}]
[null,null,0,{"$error":"#N/A"},null,null,null,null,{"$error":"#N/A"},{"$error":"#N/A"},{"$error":"#N/A"}]
[null,null,0,{"$error":"#N/A"},null,null,null,null,{"$error":"#N/A"},{"$error":"#N/A"},{"$error":"#N/A"}]
[null,null,0,{"$error":"#N/A"},null,null,null,null,{"$error":"#N/A"},{"$error":"#N/A"},{"$error":"#N/A"}]
[null,null,0,{"$error":"#N/A"},null,null,null,null,{"$error":"#N/A"},{"$error":"#N/A"},{"$error":"#N/A"}]
[null,null,0,{"$error":"#N/A"},null,null,null,null,{"$error":"#N/A"},{"$error":"#N/A"},{"$error":"#N/A"}]
[null,null,0,{"$error":"#N/A"},null,null,null,null,{"$error":"#N/A"},{"$error":"#N/A"},{"$error":"#N/A"}]
[null,null,0,{"$error":"#N/A"},null,null,null,null,{"$error":"#N/A"},{"$error":"#N/A"},{"$error":"#N/A"}]
[null,null,0,{"$error":"#N/A"},null,null,null,null,{"$error":"#N/A"},{"$error":"#N/A"},{"$error":"#N/A"}]
[null,null,0,{"$error":"#N/A"},null,null,null,null,{"$error":"#N/A"},{"$error":"#N/A"},{"$error":"#N/A"}]
[null,null,0,{"$error":"#N/A"},null,null,null,null,{"$error":"#N/A"},{"$error":"#N/A"},{"$error":"#N/A"}]
[null,null,0,{"$error":"#N/A"},null,null,null,null,{"$error":"#N/A"},{"$error":"#N/A"},{"$error":"#N/A"}]
[null,null,0,{"$error":"#N/A"},null,null,null,null,{"$error":"#N/A"},{"$error":"#N/A"},{"$error":"#N/A"}]
[null,null,0,{"$error":"#N/A"},null,null,null,null,{"$error":"#N/A"},{"$error":"#N/A"},{"$error":"#N/A"}]
[null,null,0,{"$error":"#N/A"},null,null,null,null,{"$error":"#N/A"},{"$error":"#N/A"},{"$error":"#N/A"}]
[null,null,0,{"$error":"#N/A"},null,null,null,null,{"$error":"#N/A"},{"$error":"#N/A"},{"$error":"#N/A"}]
[null,null,0,{"$error":"#N/A"},null,null,null,null,{"$error":"#N/A"},{"$error":"#N/A"},{"$f":"IF($G$12<>0,I227/$G$12,0)","v":{"$error":"#N/A"}}]
[null,null,0,{"$error":"#N/A"},null,null,null,null,{"$error":"#N/A"},{"$error":"#N/A"},{"$error":"#N/A"}]
[null,null,0,{"$error":"#N/A"},null,null,null,null,{"$error":"#N/A"},{"$error":"#N/A"},{"$error":"#N/A"}]
[null,null,0,{"$error":"#N/A"},null,null,null,null,{"$error":"#N/A"},{"$error":"#N/A"},{"$error":"#N/A"}]
[null,null,0,{"$error":"#N/A"},null,null,null,null,{"$error":"#N/A"},{"$error":"#N/A"},{"$error":"#N/A"}]
[null,null,0,{"$error":"#N/A"},null,null,null,null,{"$error":"#N/A"},{"$f":"I232/$I$262","v":{"$error":"#N/A"}},{"$error":"#N/A"}]
[null,null,0,{"$error":"#N/A"},null,null,null,null,{"$error":"#N/A"},{"$error":"#N/A"},{"$error":"#N/A"}]
[null,null,0,{"$error":"#N/A"},null,null,null,null,{"$error":"#N/A"},{"$error":"#N/A"},{"$error":"#N/A"}]
[null,null,0,{"$error":"#N/A"},null,null,null,null,{"$error":"#N/A"},{"$error":"#N/A"},{"$error":"#N/A"}]
[null,null,0,{"$error":"#N/A"},null,null,null,null,{"$error":"#N/A"},{"$error":"#N/A"},{"$error":"#N/A"}]
[null,null,0,{"$error":"#N/A"},null,null,null,null,{"$error":"#N/A"},{"$error":"#N/A"},{"$error":"#N/A"}]
[null,null,0,{"$error":"#N/A"},null,null,null,null,{"$error":"#N/A"},{"$error":"#N/A"},{"$error":"#N/A"}]
[null,null,0,{"$error":"#N/A"},null,null,null,null,{"$error":"#N/A"},{"$error":"#N/A"},{"$error":"#N/A"}]
[null,null,0,{"$error":"#N/A"},null,null,null,null,{"$error":"#N/A"},{"$error":"#N/A"},{"$error":"#N/A"}]
[null,null,0,{"$error":"#N/A"},null,null,null,null,{"$error":"#N/A"},{"$error":"#N/A"},{"$error":"#N/A"}]
[null,null,0,{"$error":"#N/A"},null,null,null,null,{"$error":"#N/A"},{"$error":"#N/A"},{"$error":"#N/A"}]
[null,null,0,{"$error":"#N/A"},null,null,null,null,{"$error":"#N/A"},{"$error":"#N/A"},{"$error":"#N/A"}]
[null,null,0,{"$error":"#N/A"},null,null,null,null,{"$error":"#N/A"},{"$error":"#N/A"},{"$error":"#N/A"}]
[null,null,0,{"$error":"#N/A"},null,null,null,null,{"$error":"#N/A"},{"$error":"#N/A"},{"$error":"#N/A"}]
[null,null,0,{"$error":"#N/A"},null,null,null,null,{"$error":"#N/A"},{"$error":"#N/A"},{"$error":"#N/A"}]
[null,null,0,{"$error":"#N/A"},null,null,null,null,{"$error":"#N/A"},{"$error":"#N/A"},{"$error":"#N/A"}]
[null,null,0,{"$error":"#N/A"},null,null,null,null,{"$error":"#N/A"},{"$error":"#N/A"},{"$error":"#N/A"}]
[null,null,0,{"$error":"#N/A"},null,null,null,null,{"$error":"#N/A"},{"$error":"#N/A"},{"$error":"#N/A"}]
[null,null,0,{"$error":"#N/A"},null,null,null,null,{"$error":"#N/A"},{"$error":"#N/A"},{"$error":"#N/A"}]
[null,null,0,{"$error":"#N/A"},null,null,null,null,{"$error":"#N/A"},{"$error":"#N/A"},{"$error":"#N/A"}]
[null,null,0,{"$error":"#N/A"},null,null,null,null,{"$error":"#N/A"},{"$error":"#N/A"},{"$error":"#N/A"}]
[null,null,0,{"$error":"#N/A"},null,null,null,null,{"$error":"#N/A"},{"$error":"#N/A"},{"$error":"#N/A"}]
[null,null,0,{"$error":"#N/A"},null,null,null,null,{"$error":"#N/A"},{"$error":"#N/A"},{"$error":"#N/A"}]
[null,null,0,{"$error":"#N/A"},null,null,null,null,{"$error":"#N/A"},{"$error":"#N/A"},{"$error":"#N/A"}]
[null,null,0,{"$error":"#N/A"},null,null,null,null,{"$error":"#N/A"},{"$error":"#N/A"},{"$error":"#N/A"}]
[null,null,0,{"$error":"#N/A"},null,null,null,null,{"$error":"#N/A"},{"$error":"#N/A"},{"$error":"#N/A"}]
[null,null,0,{"$error":"#N/A"},null,null,null,null,{"$error":"#N/A"},{"$error":"#N/A"},{"$error":"#N/A"}]
[null,null,0,{"$error":"#N/A"},null,null,null,null,{"$error":"#N/A"},{"$error":"#N/A"},{"$error":"#N/A"}]
[null,null,0,{"$error":"#N/A"},null,null,null,null,{"$error":"#N/A"},{"$error":"#N/A"},{"$error":"#N/A"}]
[null,null,0,{"$error":"#N/A"},null,null,null,null,{"$error":"#N/A"},{"$error":"#N/A"},{"$error":"#N/A"}]
[null,null,null,null,null,null,null,null,{"$f":"SUM(I162:I162)","v":11},1,7.8014184397163122E-2]
[]
[null,"Info"]
[]
[]
[]
[]
[]
[]
[]
[]
[]
[]
[]
[]
[null,null,"URL Underscores","URLs found using underscores",{"$error":"#REF!"}]
[]
[]
[null,"INFO","Tab Names","Long Desc",null,null,null,null,"Issue Count","Info %","Total Issue %"]
[null,null,"Short Meta Keywords","Pages found with meta keyword tag shorter than 80 characters",null,null,null,null,51,{"$f":"I281/$I$381","v":0.56043956043956045},{"$f":"IF($G$12<>0,I281/$G$12,0)","v":0.36170212765957449}]
[null,null,"Short H1 Tags","Pages found with H1 tag shorter than 15 characters",null,null,null,null,29,{"$f":"I282/$I$381","v":0.31868131868131866},{"$f":"IF($G$12<>0,I282/$G$12,0)","v":0.20567375886524822}]
[null,null,"Long H1 Tags","Pages found with H1 tag longer than 75 characters",null,null,null,null,7,{"$f":"I283/$I$381","v":7.6923076923076927E-2},{"$f":"IF($G$12<>0,I283/$G$12,0)","v":4.9645390070921988E-2}]
[null,null,"URL Hyphens","URLs found with six or more hyphens",null,null,null,null,3,{"$f":"I284/$I$381","v":3.2967032967032968E-2},{"$f":"IF($G$12<>0,I284/$G$12,0)","v":2.1276595744680851E-2}]
[null,null,"301s","Redirect found - Permanent - 301 Response Code",null,null,null,null,1,{"$f":"I285/$I$381","v":1.098901098901099E-2},{"$f":"IF($G$12<>0,I285/$G$12,0)","v":7.0921985815602835E-3}]
[null,null,0,{"$error":"#N/A"},null,null,null,null,{"$error":"#N/A"},{"$f":"I286/$I$381","v":{"$error":"#N/A"}},{"$f":"IF($G$12<>0,I286/$G$12,0)","v":{"$error":"#N/A"}}]
[null,null,0,{"$error":"#N/A"},null,null,null,null,{"$error":"#N/A"},{"$f":"I287/$I$381","v":{"$error":"#N/A"}},{"$f":"IF($G$12<>0,I287/$G$12,0)","v":{"$error":"#N/A"}}]
[null,null,0,{"$error":"#N/A"},null,null,null,null,{"$error":"#N/A"},{"$error":"#N/A"},{"$error":"#N/A"}]
[null,null,0,{"$error":"#N/A"},null,null,null,null,{"$error":"#N/A"},{"$error":"#N/A"},{"$error":"#N/A"}]
[null,null,0,{"$error":"#N/A"},null,null,null,null,{"$error":"#N/A"},{"$error":"#N/A"},{"$error":"#N/A"}]
[null,null,0,{"$error":"#N/A"},null,null,null,null,{"$error":"#N/A"},{"$error":"#N/A"},{"$error":"#N/A"}]
[null,null,0,{"$error":"#N/A"},null,null,null,null,{"$error":"#N/A"},{"$error":"#N/A"},{"$error":"#N/A"}]
[null,null,0,{"$error":"#N/A"},null,null,null,null,{"$error":"#N/A"},{"$error":"#N/A"},{"$error":"#N/A"}]
[null,null,0,{"$error":"#N/A"},null,null,null,null,{"$error":"#N/A"},{"$error":"#N/A"},{"$error":"#N/A"}]
[null,null,0,{"$error":"#N/A"},null,null,null,null,{"$error":"#N/A"},{"$error":"#N/A"},{"$error":"#N/A"}]
[null,null,0,{"$error":"#N/A"},null,null,null,null,{"$error":"#N/A"},{"$error":"#N/A"},{"$error":"#N/A"}]
[null,null,0,{"$error":"#N/A"},null,null,null,null,{"$error":"#N/A"},{"$error":"#N/A"},{"$error":"#N/A"}]
[null,null,0,{"$error":"#N/A"},null,null,null,null,{"$error":"#N/A"},{"$error":"#N/A"},{"$error":"#N/A"}]
[null,null,0,{"$error":"#N/A"},null,null,null,null,{"$error":"#N/A"},{"$error":"#N/A"},{"$error":"#N/A"}]
[null,null,0,{"$error":"#N/A"},null,null,null,null,{"$error":"#N/A"},{"$error":"#N/A"},{"$error":"#N/A"}]
[null,null,0,{"$error":"#N/A"},null,null,null,null,{"$error":"#N/A"},{"$error":"#N/A"},{"$error":"#N/A"}]
[null,null,0,{"$error":"#N/A"},null,null,null,null,{"$error":"#N/A"},{"$error":"#N/A"},{"$error":"#N/A"}]
[null,null,0,{"$error":"#N/A"},null,null,null,null,{"$error":"#N/A"},{"$error":"#N/A"},{"$error":"#N/A"}]
[null,null,0,{"$error":"#N/A"},null,null,null,null,{"$error":"#N/A"},{"$error":"#N/A"},{"$error":"#N/A"}]
[null,null,0,{"$error":"#N/A"},null,null,null,null,{"$error":"#N/A"},{"$error":"#N/A"},{"$error":"#N/A"}]
[null,null,0,{"$error":"#N/A"},null,null,null,null,{"$error":"#N/A"},{"$error":"#N/A"},{"$error":"#N/A"}]
[null,null,0,{"$error":"#N/A"},null,null,null,null,{"$error":"#N/A"},{"$error":"#N/A"},{"$error":"#N/A"}]
[null,null,0,{"$error":"#N/A"},null,null,null,null,{"$error":"#N/A"},{"$error":"#N/A"},{"$error":"#N/A"}]
[null,null,0,{"$error":"#N/A"},null,null,null,null,{"$error":"#N/A"},{"$error":"#N/A"},{"$error":"#N/A"}]
[null,null,0,{"$error":"#N/A"},null,null,null,null,{"$error":"#N/A"},{"$error":"#N/A"},{"$error":"#N/A"}]
[null,null,0,{"$error":"#N/A"},null,null,null,null,{"$error":"#N/A"},{"$error":"#N/A"},{"$error":"#N/A"}]
[null,null,0,{"$error":"#N/A"},null,null,null,null,{"$error":"#N/A"},{"$error":"#N/A"},{"$error":"#N/A"}]
[null,null,0,{"$error":"#N/A"},null,null,null,null,{"$error":"#N/A"},{"$error":"#N/A"},{"$error":"#N/A"}]
[null,null,0,{"$error":"#N/A"},null,null,null,null,{"$error":"#N/A"},{"$error":"#N/A"},{"$error":"#N/A"}]
[null,null,0,{"$error":"#N/A"},null,null,null,null,{"$error":"#N/A"},{"$error":"#N/A"},{"$error":"#N/A"}]
[null,null,0,{"$error":"#N/A"},null,null,null,null,{"$error":"#N/A"},{"$error":"#N/A"},{"$error":"#N/A"}]
[null,null,0,{"$error":"#N/A"},null,null,null,null,{"$error":"#N/A"},{"$error":"#N/A"},{"$error":"#N/A"}]
[null,null,0,{"$error":"#N/A"},null,null,null,null,{"$error":"#N/A"},{"$error":"#N/A"},{"$error":"#N/A"}]
[null,null,0,{"$error":"#N/A"},null,null,null,null,{"$error":"#N/A"},{"$error":"#N/A"},{"$error":"#N/A"}]
[null,null,0,{"$error":"#N/A"},null,null,null,null,{"$error":"#N/A"},{"$error":"#N/A"},{"$error":"#N/A"}]
[null,null,0,{"$error":"#N/A"},null,null,null,null,{"$error":"#N/A"},{"$error":"#N/A"},{"$error":"#N/A"}]
[null,null,0,{"$error":"#N/A"},null,null,null,null,{"$error":"#N/A"},{"$error":"#N/A"},{"$error":"#N/A"}]
[null,null,0,{"$error":"#N/A"},null,null,null,null,{"$error":"#N/A"},{"$error":"#N/A"},{"$error":"#N/A"}]
[null,null,0,{"$error":"#N/A"},null,null,null,null,{"$error":"#N/A"},{"$error":"#N/A"},{"$error":"#N/A"}]
[null,null,0,{"$error":"#N/A"},null,null,null,null,{"$error":"#N/A"},{"$error":"#N/A"},{"$error":"#N/A"}]
[null,null,0,{"$error":"#N/A"},null,null,null,null,{"$error":"#N/A"},{"$error":"#N/A"},{"$error":"#N/A"}]
[null,null,0,{"$error":"#N/A"},null,null,null,null,{"$error":"#N/A"},{"$error":"#N/A"},{"$error":"#N/A"}]
[null,null,0,{"$error":"#N/A"},null,null,null,null,{"$error":"#N/A"},{"$error":"#N/A"},{"$error":"#N/A"}]
[null,null,0,{"$error":"#N/A"},null,null,null,null,{"$error":"#N/A"},{"$error":"#N/A"},{"$error":"#N/A"}]
[null,null,0,{"$error":"#N/A"},null,null,null,null,{"$error":"#N/A"},{"$error":"#N/A"},{"$error":"#N/A"}]
[null,null,0,{"$error":"#N/A"},null,null,null,null,{"$error":"#N/A"},{"$error":"#N/A"},{"$error":"#N/A"}]
[null,null,0,{"$error":"#N/A"},null,null,null,null,{"$error":"#N/A"},{"$error":"#N/A"},{"$error":"#N/A"}]
[null,null,0,{"$error":"#N/A"},null,null,null,null,{"$error":"#N/A"},{"$error":"#N/A"},{"$error":"#N/A"}]
[null,null,0,{"$error":"#N/A"},null,null,null,null,{"$error":"#N/A"},{"$error":"#N/A"},{"$error":"#N/A"}]
[null,null,0,{"$error":"#N/A"},null,null,null,null,{"$error":"#N/A"},{"$error":"#N/A"},{"$error":"#N/A"}]
[null,null,0,{"$error":"#N/A"},null,null,null,null,{"$error":"#N/A"},{"$error":"#N/A"},{"$error":"#N/A"}]
[null,null,0,{"$error":"#N/A"},null,null,null,null,{"$error":"#N/A"},{"$error":"#N/A"},{"$error":"#N/A"}]
[null,null,0,{"$error":"#N/A"},null,null,null,null,{"$error":"#N/A"},{"$error":"#N/A"},{"$error":"#N/A"}]
[null,null,0,{"$error":"#N/A"},null,null,null,null,{"$error":"#N/A"},{"$error":"#N/A"},{"$error":"#N/A"}]
[null,null,0,{"$error":"#N/A"},null,null,null,null,{"$error":"#N/A"},{"$error":"#N/A"},{"$error":"#N/A"}]
[null,null,0,{"$error":"#N/A"},null,null,null,null,{"$error":"#N/A"},{"$error":"#N/A"},{"$error":"#N/A"}]
[null,null,0,{"$error":"#N/A"},null,null,null,null,{"$error":"#N/A"},{"$error":"#N/A"},{"$error":"#N/A"}]
[null,null,0,{"$error":"#N/A"},null,null,null,null,{"$error":"#N/A"},{"$error":"#N/A"},{"$error":"#N/A"}]
[null,null,0,{"$error":"#N/A"},null,null,null,null,{"$error":"#N/A"},{"$error":"#N/A"},{"$error":"#N/A"}]
[null,null,0,{"$error":"#N/A"},null,null,null,null,{"$error":"#N/A"},{"$error":"#N/A"},{"$error":"#N/A"}]
[null,null,0,{"$error":"#N/A"},null,null,null,null,{"$error":"#N/A"},{"$f":"I346/$I$381","v":{"$error":"#N/A"}},{"$f":"IF($G$12<>0,I346/$G$12,0)","v":{"$error":"#N/A"}}]
[null,null,0,{"$error":"#N/A"},null,null,null,null,{"$error":"#N/A"},{"$error":"#N/A"},{"$error":"#N/A"}]
[null,null,0,{"$error":"#N/A"},null,null,null,null,{"$error":"#N/A"},{"$error":"#N/A"},{"$error":"#N/A"}]
[null,null,0,{"$error":"#N/A"},null,null,null,null,{"$error":"#N/A"},{"$error":"#N/A"},{"$error":"#N/A"}]
[null,null,0,{"$error":"#N/A"},null,null,null,null,{"$error":"#N/A"},{"$error":"#N/A"},{"$error":"#N/A"}]
[null,null,0,{"$error":"#N/A"},null,null,null,null,{"$error":"#N/A"},{"$error":"#N/A"},{"$error":"#N/A"}]
[null,null,0,{"$error":"#N/A"},null,null,null,null,{"$error":"#N/A"},{"$error":"#N/A"},{"$error":"#N/A"}]
[null,null,0,{"$error":"#N/A"},null,null,null,null,{"$error":"#N/A"},{"$error":"#N/A"},{"$error":"#N/A"}]
[null,null,0,{"$error":"#N/A"},null,null,null,null,{"$error":"#N/A"},{"$error":"#N/A"},{"$error":"#N/A"}]
[null,null,0,{"$error":"#N/A"},null,null,null,null,{"$error":"#N/A"},{"$error":"#N/A"},{"$error":"#N/A"}]
[null,null,0,{"$error":"#N/A"},null,null,null,null,{"$error":"#N/A"},{"$error":"#N/A"},{"$error":"#N/A"}]
[null,null,0,{"$error":"#N/A"},null,null,null,null,{"$error":"#N/A"},{"$error":"#N/A"},{"$error":"#N/A"}]
[null,null,0,{"$error":"#N/A"},null,null,null,null,{"$error":"#N/A"},{"$error":"#N/A"},{"$error":"#N/A"}]
[null,null,0,{"$error":"#N/A"},null,null,null,null,{"$error":"#N/A"},{"$error":"#N/A"},{"$error":"#N/A"}]
[null,null,0,{"$error":"#N/A"},null,null,null,null,{"$error":"#N/A"},{"$error":"#N/A"},{"$error":"#N/A"}]
[null,null,0,{"$error":"#N/A"},null,null,null,null,{"$error":"#N/A"},{"$error":"#N/A"},{"$error":"#N/A"}]
[null,null,0,{"$error":"#N/A"},null,null,null,null,{"$error":"#N/A"},{"$error":"#N/A"},{"$error":"#N/A"}]
[null,null,0,{"$error":"#N/A"},null,null,null,null,{"$error":"#N/A"},{"$error":"#N/A"},{"$error":"#N/A"}]
[null,null,0,{"$error":"#N/A"},null,null,null,null,{"$error":"#N/A"},{"$error":"#N/A"},{"$error":"#N/A"}]
[null,null,0,{"$error":"#N/A"},null,null,null,null,{"$error":"#N/A"},{"$error":"#N/A"},{"$error":"#N/A"}]
[null,null,0,{"$error":"#N/A"},null,null,null,null,{"$error":"#N/A"},{"$error":"#N/A"},{"$error":"#N/A"}]
[null,null,0,{"$error":"#N/A"},null,null,null,null,{"$error":"#N/A"},{"$error":"#N/A"},{"$error":"#N/A"}]
[null,null,0,{"$error":"#N/A"},null,null,null,null,{"$error":"#N/A"},{"$error":"#N/A"},{"$error":"#N/A"}]
[null,null,0,{"$error":"#N/A"},null,null,null,null,{"$error":"#N/A"},{"$error":"#N/A"},{"$error":"#N/A"}]
[null,null,0,{"$error":"#N/A"},null,null,null,null,{"$error":"#N/A"},{"$error":"#N/A"},{"$error":"#N/A"}]
[null,null,0,{"$error":"#N/A"},null,null,null,null,{"$error":"#N/A"},{"$error":"#N/A"},{"$error":"#N/A"}]
[null,null,0,{"$error":"#N/A"},null,null,null,null,{"$error":"#N/A"},{"$error":"#N/A"},{"$error":"#N/A"}]
[null,null,0,{"$error":"#N/A"},null,null,null,null,{"$error":"#N/A"},{"$error":"#N/A"},{"$error":"#N/A"}]
[null,null,0,{"$error":"#N/A"},null,null,null,null,{"$error":"#N/A"},{"$error":"#N/A"},{"$error":"#N/A"}]
[null,null,0,{"$error":"#N/A"},null,null,null,null,{"$error":"#N/A"},{"$error":"#N/A"},{"$error":"#N/A"}]
[null,null,0,{"$error":"#N/A"},null,null,null,null,{"$error":"#N/A"},{"$error":"#N/A"},{"$error":"#N/A"}]
[null,null,0,{"$error":"#N/A"},null,null,null,null,{"$error":"#N/A"},{"$error":"#N/A"},{"$error":"#N/A"}]
[null,null,0,{"$error":"#N/A"},null,null,null,null,{"$error":"#N/A"},{"$error":"#N/A"},{"$error":"#N/A"}]
[null,null,0,{"$error":"#N/A"},null,null,null,null,{"$error":"#N/A"},{"$error":"#N/A"},{"$error":"#N/A"}]
[null,null,0,{"$error":"#N/A"},null,null,null,null,{"$error":"#N/A"},{"$error":"#N/A"},{"$error":"#N/A"}]
[null,null,null,null,null,null,null,null,{"$f":"SUM(I281:I285)","v":91},1,0.64539007092198586]

{"sheet":"Short Meta Descriptions","index":1,"n_rows":46,"n_cols":4,"rows_kept":46,"cut":false,"hidden":false,"merged":[]}
[]
[]
[null,"Short Meta Descriptions"]
[]
[null,"Pages found with meta description tag shorter than 125 characters"]
[null,"Total Count: 37"]
[]
[null,"Issue Severity: Critical"]
[null,"URL","Meta Description","Character Count"]
[null,"http://www.thesearchagency.com/search-engines/","Search Engine Guide",19]
[null,"http://www.thesearchagency.com/search-marketing-glossary/","Search Term Glossary",20]
[null,"http://www.thesearchagency.com/2010/20100127-the-search-agency-continues-strong-growth-in-2009.html","Read about The Search Agency's Performance and Growth in 2009",61]
[null,"http://www.thesearchagency.com/2009/20091112-david-hughes-authors-chapter.html","Read about new research on search marketing and direct marketing",64]
[null,"http://www.thesearchagency.com/2009/20091020-deloitte-technology-fast-500.html","Read how The Search Agency was ranked #83 in Deloitte's 2009 Technology Fast 500",80]
[null,"http://www.thesearchagency.com/2010/20100608/the-search-agency-expands-its-east-coast-presence.html","The Search Agency opens new office in Baltimore, MD to support clients across the country",89]
[null,"http://www.thesearchagency.com/advertising-age-top-search-marketing-firm.html","Advertising Age named The Search Agency a Top U.S. Search Markeitng Firm in its 2010 Agency Report",98]
[null,"http://www.thesearchagency.com/search-marketing-glossary/api.html","The complete definition of API. The term API and its definition. Looking for the definition of API?",99]
[null,"http://www.thesearchagency.com/search-marketing-glossary/blog.html","The complete definition of Blog. The term Blog and its definition. Looking for the definition of Blog?",102]
[null,"http://www.thesearchagency.com/2009/20090825-cyberdefenderpartnership.html","CyberDefender partners with The Search Agency. Read more about this partnership at  TheSearchAgency.com.",104]
[null,"http://www.thesearchagency.com/2008/the-search-agency-opens-three-new-offices.html","The Search Agency Opens Three New Offices. Learn more about it in the press release from The Search Agency.",107]
[null,"http://www.thesearchagency.com/2008/may-barbara-palmer.html","The Search Agency Appoints Barbara Palmer as President. Press release, news and events of The Search Agency.",108]
[null,"http://www.thesearchagency.com/consumer-experience.html","Learn about consumer experience and the value The Search Agency can add to your performance-based marketing.",108]
[null,"http://www.thesearchagency.com/search-marketing-glossary/banner.html","The complete definition of Banner. The term Banner and its definition. Looking for the definition of Banner?",108]
[null,"http://www.thesearchagency.com/search-marketing-glossary/opt-in.html","The complete definition of Opt-In. The term Opt-In and its definition. Looking for the definition of Opt-In?",108]
[null,"http://www.thesearchagency.com/search-marketing-glossary/applet.html","The complete definition of Applet. The term Applet and its definition. Looking for the definition of Applet?",108]
[null,"http://www.thesearchagency.com/2007/jun-yahoo-panama-release.html","Yahoo opens Panama search ad platform. Read this press release and other news and events of The Search Agency.",110]
[null,"http://www.thesearchagency.com/search-marketing-glossary/opt-out.html","The complete definition of Opt-Out. The term Opt-Out and its definition. Looking for the definition of Opt-Out?",111]
[null,"http://www.thesearchagency.com/inthenews.html","Review recent media coverage for the latest quotes and information. Get proven solutions with The Search Agency. ",112]
[null,"http://www.thesearchagency.com/display-advertising.html","Learn about ROI-based display advertising from The Search Agency and how it truly is a return on your investment. ",113]
[null,"http://www.thesearchagency.com/press-releases.html","Read the latest SEM and SEO news of The Search Agency with the following press releases. Read up and get informed. ",114]
[null,"http://www.thesearchagency.com/search-marketing-glossary/cloaking.html","The complete definition of Cloaking. The term Cloaking and its definition. Looking for the definition of Cloaking?",114]
[null,"http://www.thesearchagency.com/search-marketing-glossary/pagerank.html","The complete definition of PageRank. The term PageRank and its definition. Looking for the definition of PageRank?",114]
[null,"http://www.thesearchagency.com/search-marketing-glossary/alt-text.html","The complete definition of Alt Text. The term Alt Text and its definition. Looking for the definition of Alt Text?",114]
[null,"http://www.thesearchagency.com/search-marketing-glossary/ad-group.html","The complete definition of Ad Group. The term Ad Group and its definition. Looking for the definition of Ad Group?",114]
[null,"http://www.thesearchagency.com/search-engine-marketing-sem.html","Searching for search engine marketing services (SEM)? You've come to the right place. Welcome to The Search Agency.",115]
[null,"http://www.thesearchagency.com/search-marketing-glossary/algorithm.html","The complete definition of Algorithm. The term Algorithm and its definition. Looking for the definition of Algorithm?",117]
[null,"http://www.thesearchagency.com/search-marketing-glossary/backlinks.html","The complete definition of Backlinks. The term Backlinks and its definition. Looking for the definition of Backlinks?",117]
[null,"http://www.thesearchagency.com/search-marketing-glossary/modifiers.html","The complete definition of Modifiers. The term Modifiers and its definition. Looking for the definition of Modifiers?",117]
[null,"http://www.thesearchagency.com/search-marketing-glossary/meta-tags.html","The complete definition of Meta Tags. The term Meta Tags and its definition. Looking for the definition of Meta Tags?",117]
[null,"http://www.thesearchagency.com/2008/apr-jmi.html","The Search Agency Announces Strategic Investment From JMI Equity - Press Release. News and events of The Search Agency.",119]
[null,"http://www.thesearchagency.com/2006/sep-move-in.html","The Search Agency Completes Move-In to Accommodate Hiring Growth. News, press releases, and events of The Search Agency.",120]
[null,"http://www.thesearchagency.com/bid-optimization-tools-ppc.html","Get the bid optimization and management you need with The Search Agency's AdMax platform. Learn more about this tool here.",122]
[null,"http://www.thesearchagency.com/website-architecture-analysis-tools.html","Need website architecture analysis tools? Want to find out the best way to structure your site? Turn to The Search Agency.",122]
[null,"http://www.thesearchagency.com/search-marketing-glossary/conversions.html","The complete definition of Conversions. The term Conversions and its definition. Looking for the definition of Conversions?",123]
[null,"http://www.thesearchagency.com/search-marketing-glossary/paid-search.html","The complete definition of Paid Search. The term Paid Search and its definition. Looking for the definition of Paid Search?",123]
[null,"http://www.thesearchagency.com/comparison-shopping.html","Learn about ROI-based comparison shopping management from The Search Agency and how it truly is a return on your investment. ",124]

{"sheet":"Duplicate H1 Tags","index":2,"n_rows":11,"n_cols":3,"rows_kept":11,"cut":false,"hidden":false,"merged":[]}
[]
[]
[null,"Duplicate H1 Tags"]
[]
[null,"Pages found with duplicate H1 tags"]
[null,"Total Count: 2"]
[]
[null,"Issue Severity: Critical"]
[null,"URL","Duplicate"]
[null,"http://www.thesearchagency.com/advertising-age-top-search-marketing-firm.html","Advertising Age Names The Search Agency a Top U.S. Search Marketing Firm"]
[null,"http://www.thesearchagency.com/2009/20090529-advertisingagetopsearchmarketingfirm.html","Advertising Age Names The Search Agency a Top U.S. Search Marketing Firm"]

{"sheet":"Short Title Tags","index":3,"n_rows":20,"n_cols":4,"rows_kept":20,"cut":false,"hidden":false,"merged":[]}
[]
[]
[null,"Short Title Tags"]
[]
[null,"Pages found with title tag shorter than 20 characters"]
[null,"Total Count: 11"]
[]
[null,"Issue Severity: Warning"]
[null,"URL","Title Tags","Character Count"]
[null,"http://www.thesearchagency.com/search-marketing-glossary/api.html","API Definition",14]
[null,"http://www.thesearchagency.com/search-marketing-glossary/blog.html","Blog Definition",15]
[null,"http://www.thesearchagency.com/search-marketing-glossary/applet.html","Applet Definition",17]
[null,"http://www.thesearchagency.com/search-marketing-glossary/banner.html","Banner Definition",17]
[null,"http://www.thesearchagency.com/search-marketing-glossary/opt-in.html","Opt-In Definition",17]
[null,"http://www.thesearchagency.com/search-marketing-glossary/opt-out.html","Opt-Out Definition",18]
[null,"http://www.thesearchagency.com/search-marketing-glossary/cloaking.html","Cloaking Definition",19]
[null,"http://www.thesearchagency.com/search-marketing-glossary/pagerank.html","PageRank Definition",19]
[null,"http://www.thesearchagency.com/search-engines/","Search Engine Guide",19]
[null,"http://www.thesearchagency.com/search-marketing-glossary/ad-group.html","Ad Group Definition",19]
[null,"http://www.thesearchagency.com/search-marketing-glossary/alt-text.html","Alt Text Definition",19]

{"sheet":"Short Meta Keywords","index":4,"n_rows":60,"n_cols":4,"rows_kept":60,"cut":false,"hidden":false,"merged":[]}
[]
[]
[null,"Short Meta Keywords"]
[]
[null,"Pages found with meta keyword tag shorter than 80 characters"]
[null,"Total Count: 51"]
[]
[null,"Issue Severity: Info"]
[null,"URL","Meta Keywords","Character Count"]
[null,"http://www.thesearchagency.com/search-engines/","Search Engine Guide",19]
[null,"http://www.thesearchagency.com/search-marketing-glossary/","Search Term Glossary",20]
[null,"http://www.thesearchagency.com/search-marketing-glossary/api.html","API Glossary Definition",23]
[null,"http://www.thesearchagency.com/search-marketing-glossary/blog.html","Blog Glossary Definition",24]
[null,"http://www.thesearchagency.com/search-marketing-glossary/banner.html","Banner Glossary Definition",26]
[null,"http://www.thesearchagency.com/search-marketing-glossary/applet.html","Applet Glossary Definition",26]
[null,"http://www.thesearchagency.com/search-marketing-glossary/opt-in.html","Opt-In Glossary Definition",26]
[null,"http://www.thesearchagency.com/search-marketing-glossary/opt-out.html","Opt-Out Glossary Definition",27]
[null,"http://www.thesearchagency.com/search-marketing-glossary/alt-text.html","Alt Text Glossary Definition",28]
[null,"http://www.thesearchagency.com/2009/20091020-deloitte-technology-fast-500.html","Deloitte Technology Fast 500",28]
[null,"http://www.thesearchagency.com/search-marketing-glossary/ad-group.html","Ad Group Glossary Definition",28]
[null,"http://www.thesearchagency.com/search-marketing-glossary/cloaking.html","Cloaking Glossary Definition",28]
[null,"http://www.thesearchagency.com/search-marketing-glossary/pagerank.html","PageRank Glossary Definition",28]
[null,"http://www.thesearchagency.com/search-marketing-glossary/meta-tags.html","Meta Tags Glossary Definition",29]
[null,"http://www.thesearchagency.com/search-marketing-glossary/algorithm.html","Algorithm Glossary Definition",29]
[null,"http://www.thesearchagency.com/search-marketing-glossary/backlinks.html","Backlinks Glossary Definition",29]
[null,"http://www.thesearchagency.com/search-marketing-glossary/modifiers.html","Modifiers Glossary Definition",29]
[null,"http://www.thesearchagency.com/search-marketing-glossary/conversions.html","Conversions Glossary Definition",31]
[null,"http://www.thesearchagency.com/search-marketing-glossary/paid-search.html","Paid Search Glossary Definition",31]
[null,"http://www.thesearchagency.com/search-marketing-glossary/pay-per-call.html","Pay-Per-Call Glossary Definition",32]
[null,"http://www.thesearchagency.com/search-marketing-glossary/mirror-sites.html","Mirror Sites Glossary Definition",32]
[null,"http://www.thesearchagency.com/search-marketing-glossary/local-search.html","Local Search Glossary Definition",32]
[null,"http://www.thesearchagency.com/search-marketing-glossary/mobile-search.html","Mobile Search Glossary Definition",33]
[null,"http://www.thesearchagency.com/search-marketing-glossary/paid-listings.html","Paid Listings Glossary Definition",33]
[null,"http://www.thesearchagency.com/search-marketing-glossary/paid-inclusion.html","Paid Inclusion Glossary Definition",34]
[null,"http://www.thesearchagency.com/search-marketing-glossary/paid-placement.html","Paid Placement Glossary Definition",34]
[null,"http://www.thesearchagency.com/search-marketing-glossary/natural-search.html","Natural Search Glossary Definition",34]
[null,"http://www.thesearchagency.com/search-marketing-glossary/organic-search.html","Organic Search Glossary Definition",34]
[null,"http://www.thesearchagency.com/search-marketing-glossary/category-terms.html","Category Terms Glossary Definition",34]
[null,"http://www.thesearchagency.com/search-marketing-glossary/outbound-links.html","Outbound Links Glossary Definition",34]
[null,"http://www.thesearchagency.com/search-marketing-glossary/button-exchange.html","Button Exchange Glossary Definition",35]
[null,"http://www.thesearchagency.com/search-marketing-glossary/packet-sniffing.html","Packet Sniffing Glossary Definition",35]
[null,"http://www.thesearchagency.com/search-marketing-glossary/bid-to-position.html","Bid to Position Glossary Definition",35]
[null,"http://www.thesearchagency.com/search-marketing-glossary/admax-bid-tool.html","AdMax™ Bid Tool Glossary Definition",35]
[null,"http://www.thesearchagency.com/search-marketing-glossary/conversion-rate.html","Conversion Rate Glossary Definition",35]
[null,"http://www.thesearchagency.com/search-marketing-glossary/organic-listings.html","Organic Listings Glossary Definition",36]
[null,"http://www.thesearchagency.com/search-marketing-glossary/meta-keywords-tag.html","Meta Keywords Tag Glossary Definition",37]
[null,"http://www.thesearchagency.com/search-marketing-glossary/meta-search-engine.html","Meta Search Engine Glossary Definition",38]
[null,"http://www.thesearchagency.com/search-marketing-glossary/competitors-terms.html","Competitor's Terms Glossary Definition",38]
[null,"http://www.thesearchagency.com/search-marketing-glossary/pay-for-performance.html","Pay For Performance Glossary Definition",39]
[null,"http://www.thesearchagency.com/search-marketing-glossary/algorithmic-results.html","Algorithmic Results Glossary Definition",39]
[null,"http://www.thesearchagency.com/search-marketing-glossary/business-name-terms.html","Business Name Terms Glossary Definition",39]
[null,"http://www.thesearchagency.com/search-marketing-glossary/meta-description-tag.html","Meta Description Tag Glossary Definition",40]
[null,"http://www.thesearchagency.com/search-marketing-glossary/cost-per-click-cpc.html","Cost Per Click (CPC) Glossary Definition",40]
[null,"http://www.thesearchagency.com/search-marketing-glossary/cost-per-acquisition.html","Cost Per Acquisition Glossary Definition",40]
[null,"http://www.thesearchagency.com/search-marketing-glossary/competitive-landscape.html","Competitive Landscape Glossary Definition",41]
[null,"http://www.thesearchagency.com/search-marketing-glossary/cost-per-action-cpa.html","Cost Per Action (CPA) Glossary Definition",41]
[null,"http://www.thesearchagency.com/search-marketing-glossary/click-through-rate-ctr.html","Click Through Rate (CTR) Glossary Definition",44]
[null,"http://www.thesearchagency.com/2010/20100127-the-search-agency-continues-strong-growth-in-2009.html","search agency, the search agency, search agency results",55]
[null,"http://www.thesearchagency.com/2009/20091112-david-hughes-authors-chapter.html","David Hughes, SEO, SEM, search marketing, direct marketing",58]
[null,"http://www.thesearchagency.com/2010/20100608/the-search-agency-expands-its-east-coast-presence.html","The Search Agency, TSA press release, TSA growth, TSA expansion",63]

{"sheet":"Short H1 Tags","index":5,"n_rows":38,"n_cols":4,"rows_kept":38,"cut":false,"hidden":false,"merged":[]}
[]
[]
[null,"Short H1 Tags"]
[]
[null,"Pages found with H1 tag shorter than 15 characters"]
[null,"Total Count: 29"]
[]
[null,"Issue Severity: Info"]
[null,"URL","H1 Tags","Character Count"]
[null,"http://www.thesearchagency.com/search-marketing-glossary/api.html","API",3]
[null,"http://www.thesearchagency.com/search-marketing-glossary/blog.html","Blog",4]
[null,"http://www.thesearchagency.com/search-marketing-glossary/applet.html","Applet",6]
[null,"http://www.thesearchagency.com/search-marketing-glossary/banner.html","Banner",6]
[null,"http://www.thesearchagency.com/search-marketing-glossary/opt-in.html","Opt-In",6]
[null,"http://www.thesearchagency.com/search-marketing-glossary/opt-out.html","Opt-Out",7]
[null,"http://www.thesearchagency.com/search-marketing-glossary/alt-text.html","Alt Text",8]
[null,"http://www.thesearchagency.com/search-marketing-glossary/","Glossary",8]
[null,"http://www.thesearchagency.com/search-marketing-glossary/ad-group.html","Ad Group",8]
[null,"http://www.thesearchagency.com/search-marketing-glossary/cloaking.html","Cloaking",8]
[null,"http://www.thesearchagency.com/search-marketing-glossary/pagerank.html","PageRank",8]
[null,"http://www.thesearchagency.com/search-marketing-glossary/algorithm.html","Algorithm",9]
[null,"http://www.thesearchagency.com/search-marketing-glossary/meta-tags.html","Meta Tags",9]
[null,"http://www.thesearchagency.com/search-marketing-glossary/backlinks.html","Backlinks",9]
[null,"http://www.thesearchagency.com/search-marketing-glossary/modifiers.html","Modifiers",9]
[null,"http://www.thesearchagency.com/contact-us.aspx","Contact Us",10]
[null,"http://www.thesearchagency.com/search-marketing-glossary/conversions.html","Conversions",11]
[null,"http://www.thesearchagency.com/search-marketing-glossary/paid-search.html","Paid Search",11]
[null,"http://www.thesearchagency.com/search-marketing-glossary/pay-per-call.html","Pay-Per-Call",12]
[null,"http://www.thesearchagency.com/search-marketing-glossary/local-search.html","Local Search",12]
[null,"http://www.thesearchagency.com/search-marketing-glossary/mirror-sites.html","Mirror Sites",12]
[null,"http://www.thesearchagency.com/search-marketing-glossary/mobile-search.html","Mobile Search",13]
[null,"http://www.thesearchagency.com/search-marketing-glossary/paid-listings.html","Paid Listings",13]
[null,"http://www.thesearchagency.com/search-marketing-glossary/paid-placement.html","Paid Placement",14]
[null,"http://www.thesearchagency.com/search-marketing-glossary/paid-inclusion.html","Paid Inclusion",14]
[null,"http://www.thesearchagency.com/search-marketing-glossary/natural-search.html","Natural Search",14]
[null,"http://www.thesearchagency.com/search-marketing-glossary/organic-search.html","Organic Search",14]
[null,"http://www.thesearchagency.com/search-marketing-glossary/category-terms.html","Category Terms",14]
[null,"http://www.thesearchagency.com/search-marketing-glossary/outbound-links.html","Outbound Links",14]

{"sheet":"Long H1 Tags","index":6,"n_rows":16,"n_cols":4,"rows_kept":16,"cut":false,"hidden":false,"merged":[]}
[]
[]
[null,"Long H1 Tags"]
[]
[null,"Pages found with H1 tag longer than 75 characters"]
[null,"Total Count: 7"]
[]
[null,"Issue Severity: Info"]
[null,"URL","H1 Tags","Character Count"]
[null,"http://www.thesearchagency.com/2009/20091020-deloitte-technology-fast-500.html","The Search Agency Ranked 83rd Fastest Growing Company in North America on Deloitte's 2009 Technology Fast 500",109]
[null,"http://www.thesearchagency.com/2006/nov-partner-summit.html","The Search Agency Hosts Clients and Partners at Search Engine Marketing and Optimization Partner Summit",103]
[null,"http://www.thesearchagency.com/2006/dec-yahoo-panama-integration.html","The Search Agency Provides Seamless Integration With Yahoo!'s New \"Panama\" Search Marketing Platform",100]
[null,"http://www.thesearchagency.com/2007/mar-conversionpathoptimization.html","The Search Agency Announces the Launch of Online Conversion Rate Optimization Service",85]
[null,"http://www.thesearchagency.com/2009/20090825-cyberdefenderpartnership.html","CyberDefender Partners With The Search Agency To Expand Customer Acquisition Efforts",84]
[null,"http://www.thesearchagency.com/2008/may-worldwidepartners-southkorea.html","Worldwide Partners Enters South Korea; Adds Search And CRM Specialists in the US",80]
[null,"http://www.thesearchagency.com/2008/rising-star-on-deloitte.html","The Search Agency Named Rising Star in Deloitte's Technology Fast 500 Program",77]

{"sheet":"URL Hyphens","index":7,"n_rows":12,"n_cols":3,"rows_kept":12,"cut":false,"hidden":false,"merged":[]}
[]
[]
[null,"URL Hyphens"]
[]
[null,"URLs found with six or more hyphens"]
[null,"Total Count: 3"]
[]
[null,"Issue Severity: Info"]
[null,"URL","Separator Count"]
[null,"http://www.thesearchagency.com/2010/20100127-the-search-agency-continues-strong-growth-in-2009.html",8]
[null,"http://www.thesearchagency.com/2010/20100608/the-search-agency-expands-its-east-coast-presence.html",7]
[null,"http://www.thesearchagency.com/2008/the-search-agency-opens-three-new-offices.html",6]

{"sheet":"301s","index":8,"n_rows":10,"n_cols":4,"rows_kept":10,"cut":false,"hidden":false,"merged":[]}
[]
[]
[null,"301s"]
[]
[null,"Redirect found - Permanent - 301 Response Code"]
[null,"Total Count: 1"]
[]
[null,"Issue Severity: Info"]
[null,"URL","Redirected to URL","Response Code"]
[null,"http://www.thesearchagency.com/conversion-path-optimization.html","http://www.thesearchagency.com/consumer-experience.html",301]

{"sheet":"Remaining Urls_1","index":9,"n_rows":70,"n_cols":11,"rows_kept":70,"cut":false,"hidden":false,"merged":[]}
[]
[]
[null,"Remaining Urls_1"]
[]
[null,"URLs without issues"]
[null,"Total Count: 61"]
[]
[]
[null,"PageID","URL","Title","Meta Description","Meta Keyword","H1","Page Size","Response Code","Response Time","Comments"]
[null,1,"http://www.thesearchagency.com/"," Search Engine Marketing and Search Engine Optimization Firm - The Search Agency","Discover the search engine marketing firm, The Search Agency offering search engine optimization (SEO), search engine marketing (SEM), and conversion path optimization (CPO) services.","search engine optimization, search engine marketing firm, search engine marketing, search engine, search, optimization, seo, sem, cpo, conversion rate, conversion, technology, process, service, results, the search agency","THE SEARCH AGENCY - SEARCH ENGINE OPTIMIZATION/MARKETING FIRM",12,200,"00:00:00.094"]
[null,2,"http://www.thesearchagency.com/about-us.html","About Internet Marketing and The Search Agency","Learn all about the internet marketing philosophy, technology, and ideals of The Search Agency. Get to know about this amazing agency.","Internet marketing, online marketing, search marketing, internet, online, search, optimization, conversion path, conversions, conversion, sem, seo, cpo ","About The Search Agency and Internet Marketing",11,200,"00:00:00.031"]
[null,3,"http://www.thesearchagency.com/search-marketing-philosophy.html","Professional Search Engine Marketing Philosophy - The Search Agency","Read the professional search engine marketing philosophy of The Search Agency and what we believe in when it comes to client interaction and process.","professional search engine marketing, The search agency, philosophy, Internet marketing, online marketing, search marketing, internet, online, search, optimization, conversion path, conversions, conversion, sem, seo, cpo","Professional Search Engine Marketing Philosophy",10,200,"00:00:00.031"]
[null,4,"http://www.thesearchagency.com/management-team.html","Internet Marketing Services Management Team - The Search Agency","Looking for internet marketing services? Learn about The Search Agency's Management Team, the experience they bring, and the accomplishments they've made.","Internet marketing services management team, internet marketing services, internet marketing service, internet marketing, internet, online, search, optimization, conversion path, conversions, conversion, sem, seo, cpo","Internet Marketing Services Management Team",20,200,"00:00:00.031"]
[null,5,"http://www.thesearchagency.com/locations.html","Integrated Online Marketing Agency - The Search Agency","Looking for an integrated online marketing agency? Turn to The Search Agency. Find our locations and how we can be contacted.","los angeles search marketing agency, los angeles search marketing, search marketing agency, search engine marketing, the search agency","Integrated Online Marketing Agency - Office Locations",11,200,"00:00:00.031"]
[null,6,"http://www.thesearchagency.com/award-winning-search-marketing.html","SEO, Search Engine Marketing Certification, Awards, and Affiliates","Discover the SEO and search engine marketing certification, awards, and affiliates of The Search Agency. Learn about them all here. ","seo search engine marketing certification, search engine marketing awards, search engine marketing affiliates, internet, online, search, optimization, conversion path, conversions, conversion, sem, seo, cpo","SEO and Search Engine Marketing Certifications",15,200,"00:00:00.031"]
[null,7,"http://www.thesearchagency.com/jobs.html","Search Engine Marketing Jobs - The Search Agency","Discover search engine marketing jobs available at The Search Agency and join one of the top SEM/SEO agencies in the business.","search engine marketing jobs, search engine marketing jobs, search engine marketing careers, search engine marketing career, Internet marketing, online marketing, search marketing, internet, online, search, optimization, conversion path, conversions, conversion, sem, seo, cpo","Search Engine Marketing Jobs from The Search Agency",159,200,"00:00:00.078"]
[null,8,"http://www.thesearchagency.com/contact-us.aspx","Los Angeles Search Engine Marketing - Contact Us - Corporate Offices","Find out about the corporate offices of the los angeles search engine marketing company, The Search Agency, addresses, and how to contact us.","los angeles search engine marketing, The search agency corporate offices, the search agency, search marketing services, search engine marketing service, search engine marketing services, search marketing service, ","Contact Us",12,200,"00:00:00.063"]
[null,9,"http://www.thesearchagency.com/integrated-online-marketing-services.html","Integrated Online Marketing Services - The Search Agency","Discover the online marketing services offered by The Search Agency and how you can reach your clients effectively online. SEO, SEM, online marketing, and more.","search engine marketing services, search engine marketing, seo, sem, search engine optimization, conversion path, display ads, banner ads, the search agency","Integrated Online Marketing Services",32,200,"00:00:00.031"]
[null,10,"http://www.thesearchagency.com/search-engine-optimization.html","Search Engine Optimization - SEO Service Overview – The Search Agency","Search engine optimization (SEO) is a delicate process that requires a delicate and skilled touch. The Search Agency can help you with these services and more.","Search engine optimization, seo, search engine optimization services, search optimization, optimize, the search agency","Search Engine Optimization (SEO)",11,200,"00:00:00.109"]
[null,11,"http://www.thesearchagency.com/social-media-marketing.html","Social Media Marketing - The Search Agency","Want to engage with customers through social networks like Facebook, Twitter, and MySpace? Perhaps you need a newer and more creative way to reach your clientele? The Search Agency provides Social Media marketing services for your every need.","social media marketing, media marketing, social media, smm, social media services, social media marketing services, social networking, social networks, the search agency","Social Media Marketing (SMM)",11,200,"00:00:00.031"]
[null,12,"http://www.thesearchagency.com/integrated-marketing-solutions.html","Integrated Marketing Solutions - The Search Agency","Looking for integrated marketing solutions (IMS)? Turn to The Search Agency. We have the SEM, SEO, e-mail and display services your business needs.","Integrated marketing solutions, ims, integrated marketing, sem, seo, email, e-mail, display, services, the search agency","Integrated Marketing Solutions",11,200,"00:00:00.031"]
[null,13,"http://www.thesearchagency.com/online-marketing-tools-technology.html","SEO and SEM Tools and Technology from The Search Agency","Looking for SEO and SEM tools and technology for your website? The Search Agency offers cutting edge services and technologies to help with your website and business needs.","Seo tools, sem tools, seo technology, sem technology, search engine optimization, search engine marketing, tools, technology, the search agency","Online Marketing Tools and Technology",13,200,"00:00:00.016"]
[null,14,"http://www.thesearchagency.com/web-analytics-tools-reporting.html","Analytics Tools and Reports - AdMax - The Search Agency","The Search Agency offers analytics tools and reports to help you track clicks, ROI, and other metrix-driven activity on your website. Learn more here.","analytics tools, web analytics reports, Seo tools, sem tools, seo technology, sem technology, search engine optimization, search engine marketing, tools, technology, the search agency","AdMax™ Analytics and Reporting",33,200,"00:00:00.031"]
[null,15,"http://www.thesearchagency.com/phone-tracking-sem-campaigns.html","Phone Tracking for Online Advertising and SEM Campaigns - The Search Agency","If you need phone tracking for online advertising and SEM campaigns, you need the services of The Search Agency. Track your online success.","Phone tracking, online phone tracking, phone tracking sem campaigns, Seo tools, sem tools, seo technology, sem technology, search engine optimization, search engine marketing, tools, technology, the search agency","AdMax™ Phone Conversion Tracking",40,200,"00:00:00.047"]
[null,16,"http://www.thesearchagency.com/website-content-tools-seo.html","Assessing Website Content - AdMax Content Tools - The Search Agency","Need help assessing website content? Looking for SEO content tools? The Search Agency has the content analysis tools and technology you need.","Assessing website content, seo content tools, Seo tools, sem tools, seo technology, sem technology, search engine optimization, search engine marketing, tools, technology, the search agency","Assessing Website Content - AdMax™ Content Analysis Tool",11,200,"00:00:00.031"]
[null,17,"http://www.thesearchagency.com/news.html","Search Engine Marketing and Optimization News and Events - The Search Agency","Get the latest search engine marketing and optimization news and events of The Search Agency. News, events, and press releases.","Search engine marketing and optimization news, search engine marketing news, search engine optimization news, internet marketing, online marketing, search marketing, internet, online, search, optimization, conversion path, conversions, conversion, sem, seo, cpo","Search Engine Marketing and Optimization News and Events",10,200,"00:00:00.031"]
[null,18,"http://www.thesearchagency.com/events.html"," Search Engine Marketing Agency Events - The Search Agency ","search engine marketing agency events, search engine marketing agency, search engine marketing, internet marketing, online marketing, search marketing, internet, online, search, optimization, conversion path, conversions, conversion, sem, seo, cpo","Search engine marketing agency events! Find out the latest events The Search Agency is involved in. ","Online Marketing Conferences",18,200,"00:00:00.031"]
[null,19,"http://www.thesearchagency.com/online-marketing-news.html","Online Marketing News -The Search Agency","Read the latest search marketing news from The Search Agency's very own The Search Agent's blog. Stay up to date with the latest search marketing trends in SEM and SEO.","search engine marketing news, search marketing news, search marketing, seo news, sem news, trends, trend, the search agents, the search agency","Online Marketing News from The Search Agents Blog",15,200,"00:00:00.016"]
[null,20,"http://www.thesearchagency.com/online-marketing-resources.html","Browse Online Marketing Resources from The Search Agency","For practical solutions, browse online marketing resources and learn the latest developments. Get answers from The Search Agency. ","online marketing resources, search engine optimization, online marketing, online optimization, search engine, marketing resources, the search agency","Integrated Online Marketing Resources",10,200,"00:00:00.031"]
[null,21,"http://www.thesearchagency.com/articles.html","Review Authored Search Engine Marketing Articles from The Search Agency","Browse authored search engine marketing articles from contributing team members. Get the latest expert information from The Search Agency. ","search engine optimization, online marketing resources, authored articles, online marketing, online optimization, marketing resources, the search agency","The Search Agency Byline Articles",15,200,"00:00:00.031"]
[null,22,"http://www.thesearchagency.com/casestudies/","Review Case Studies from The Search Agency","To see real results, browse case studies of successful solutions. For integrated online marketing, turn to The Search Agency.","search engine marketing, search engine optimization, marketing case studies, online marketing, online optimization, case studies, the search agency","Integrated Online Marketing Case Studies",11,200,"00:00:00.016"]
[null,23,"http://www.thesearchagency.com/whitepapers/","Professional Search Engine Marketing White Papers from The Search Agency","Review professional search engine marketing white papers to find answers regarding your search engine marketing firm. For accurate performance information, choose The Search Agency. ","search engine optimization, search engine marketing, marketing white papers, search marketing firm, online optimization, online marketing, the search agency ","The Search Agency White Papers",17,200,"00:00:00.016"]
[null,24,"http://www.thesearchagency.com/free-online-marketing-audit.html","FREE online marketing audit from The Search Agency","Get your FREE online marketing audit from The Search Agency. Find out how your business is doing in the online marketing space.","Free online marketing audit, online marketing audit, marketing audit, search engine optimization, search engine marketing, online marketing, the search agency","FREE Online Marketing Audit",11,200,"00:00:00.016"]
[null,25,"http://www.thesearchagency.com/2009/2009093-internationalexpansion.html","The Search Agency Accelerates its International Expansion – Press Release - September 3, 2009 ","Read how The Search Agency Accelerates its International Expansion and the new locations TSA has established offices. Learn more and get search marketing services from The Search Agency.","The Search Agency Accelerates its International Expansion, the search agency, search agency, international expansion, the search agency offices","The Search Agency Accelerates its International Expansion",10,200,"00:00:00.016"]
[null,26,"http://www.thesearchagency.com/2009/20090616-thesearchagencymattkainchiefrevenueofficer.html","Matt Kain Named Chief Revenue Officer – The Search Agency","Breaking news! Matt Kain has been named Chief Revenue Officer of The Search Agency. Learn about his new involvement with The Search Agency. ","Matt kain chief revenue officer, matt kain cro, the search agency, search engine marketing, search engine optimization, ppc, cpo, the search agency","The Search Agency Names Matt Kain Chief Revenue Officer",11,200,"00:00:00.031"]
[null,27,"http://www.thesearchagency.com/2008/rising-star-on-deloitte.html","The Search Agency Named Rising Star in Deloitte's Technology Fast 500 Program - Press Releases","The Search Agency Named Rising Star in Deloitte's Technology Fast 500 Program - Press Release. News and events of The Search Agency.","The Search Agency Named Rising Star in Deloitte's Technology Fast 500 Program , search engine marketing, internet marketing, online marketing, search marketing, internet, online, search, optimization, conversion path, conversions, conversion, sem, seo, cpo","The Search Agency Named Rising Star in Deloitte's Technology Fast 500 Program",12,200,"00:00:00.031"]
[null,28,"http://www.thesearchagency.com/2008/may-worldwidepartners-southkorea.html","Worldwide Partners Enters South Korea - Press Releases","Worldwide Partners Enters South Korea; Adds Search And CRM Specialists in the US - Press Release. News and events of The Search Agency.","Worldwide Partners Enters South Korea; Adds Search And CRM Specialists in the US, search engine marketing, internet marketing, online marketing, search marketing, internet, online, search, optimization, conversion path, conversions, conversion, sem, seo, cpo","Worldwide Partners Enters South Korea; Adds Search And CRM Specialists in the US",12,200,"00:00:00.047"]
[null,29,"http://www.thesearchagency.com/2007/aug-yahooambassador.html","The Search Agency Named As Yahoo! Search Marketing Certified Ambassador - Press Releases","The Search Agency Named As Yahoo! Search Marketing Certified Ambassador. Read this press release and other news and events of The Search Agency.","The Search Agency Named As Yahoo! Search Marketing Certified Ambassador, search engine marketing, internet marketing, online marketing, search marketing, internet, online, search, optimization, conversion path, conversions, conversion, sem, seo, cpo","The Search Agency Named As Yahoo! Search Marketing Certified Ambassador",10,200,"00:00:00.078"]
[null,30,"http://www.thesearchagency.com/2007/mar-conversionpathoptimization.html","Launch of Online Conversion Rate Optimization Service - Press Releases","Press Release: The Search Agency Announces the Launch of Online Conversion Rate Optimization Service. News and events of The Search Agency.","The Search Agency Announces the Launch of Online Conversion Rate Optimization Service, internet marketing, online marketing, search marketing, internet, online, search, optimization, conversion path, conversions, conversion, sem, seo, cpo","The Search Agency Announces the Launch of Online Conversion Rate Optimization Service",11,200,"00:00:00.016"]
[null,31,"http://www.thesearchagency.com/2006/dec-yahoo-panama-integration.html","The Search Agency Provides Seamless Integration With Yahoo! Panama - Press Releases","The Search Agency Provides Seamless Integration with Yahoo!'s Panama. Learn more about it in the press release from The Search Agency.","The Search Agency Provides Seamless Integration With Yahoo!'s New Panama Search Marketing Platform, internet marketing, online marketing, search marketing, internet, online, search, optimization, conversion path, conversions, conversion, sem, seo, cpo","The Search Agency Provides Seamless Integration With Yahoo!'s New \"Panama\" Search Marketing Platform",12,200,"00:00:00.047"]
[null,32,"http://www.thesearchagency.com/2006/nov-partner-summit.html","The Search Agency Hosts Clients and Partners Summit - Press Releases","The Search Agency Hosts Clients and Partners at Search Engine Marketing and Optimization Partner Summit. News and events of The Search Agency.","The Search Agency Hosts Clients and Partners at Search Engine Marketing and Optimization Partner Summit, internet marketing, online marketing, search marketing, internet, online, search, optimization, conversion path, conversions, conversion, sem, seo, cpo","The Search Agency Hosts Clients and Partners at Search Engine Marketing and Optimization Partner Summit",11,200,"00:00:00.078"]
[null,33,"http://www.thesearchagency.com/search-marketing-glossary/local-search.html","Local Search Definition","The complete definition of Local Search. The term Local Search and its definition. Looking for the definition of Local Search?","Local Search Glossary Definition","Local Search",19,200,"00:00:00.047"]
[null,34,"http://www.thesearchagency.com/search-marketing-glossary/admax-bid-tool.html","AdMax™ Bid Tool Definition","The complete definition of AdMax™ Bid Tool. The term AdMax™ Bid Tool and its definition. Looking for the definition of AdMax™ Bid Tool?","AdMax™ Bid Tool Glossary Definition","AdMax™ Bid Tool",19,200,"00:00:00.016"]
[null,35,"http://www.thesearchagency.com/search-marketing-glossary/meta-description-tag.html","Meta Description Tag Definition","The complete definition of Meta Description Tag. The term Meta Description Tag and its definition. Looking for the definition of Meta Description Tag?","Meta Description Tag Glossary Definition","Meta Description Tag",19,200,"00:00:00.031"]
[null,36,"http://www.thesearchagency.com/search-marketing-glossary/meta-keywords-tag.html","Meta Keywords Tag Definition","The complete definition of Meta Keywords Tag. The term Meta Keywords Tag and its definition. Looking for the definition of Meta Keywords Tag?","Meta Keywords Tag Glossary Definition","Meta Keywords Tag",19,200,"00:00:00.016"]
[null,37,"http://www.thesearchagency.com/search-marketing-glossary/algorithmic-results.html","Algorithmic Results Definition","The complete definition of Algorithmic Results. The term Algorithmic Results and its definition. Looking for the definition of Algorithmic Results?","Algorithmic Results Glossary Definition","Algorithmic Results",19,200,"00:00:00.016"]
[null,38,"http://www.thesearchagency.com/search-marketing-glossary/meta-search-engine.html","Meta Search Engine Definition","The complete definition of Meta Search Engine. The term Meta Search Engine and its definition. Looking for the definition of Meta Search Engine?","Meta Search Engine Glossary Definition","Meta Search Engine",19,200,"00:00:00.031"]
[null,39,"http://www.thesearchagency.com/search-marketing-glossary/mirror-sites.html","Mirror Sites Definition","The complete definition of Mirror Sites. The term Mirror Sites and its definition. Looking for the definition of Mirror Sites?","Mirror Sites Glossary Definition","Mirror Sites",19,200,"00:00:00.016"]
[null,40,"http://www.thesearchagency.com/search-marketing-glossary/mobile-search.html","Mobile Search Definition","The complete definition of Mobile Search. The term Mobile Search and its definition. Looking for the definition of Mobile Search?","Mobile Search Glossary Definition","Mobile Search",19,200,"00:00:00.031"]
[null,41,"http://www.thesearchagency.com/search-marketing-glossary/natural-search.html","Natural Search Definition","The complete definition of Natural Search. The term Natural Search and its definition. Looking for the definition of Natural Search?","Natural Search Glossary Definition","Natural Search",19,200,"00:00:00.031"]
[null,42,"http://www.thesearchagency.com/search-marketing-glossary/bid-to-position.html","Bid to Position Definition","The complete definition of Bid to Position. The term Bid to Position and its definition. Looking for the definition of Bid to Position?","Bid to Position Glossary Definition","Bid to Position",19,200,"00:00:00.031"]
[null,43,"http://www.thesearchagency.com/search-marketing-glossary/business-name-terms.html","Business Name Terms Definition","The complete definition of Business Name Terms. The term Business Name Terms and its definition. Looking for the definition of Business Name Terms?","Business Name Terms Glossary Definition","Business Name Terms",19,200,"00:00:00.031"]
[null,44,"http://www.thesearchagency.com/search-marketing-glossary/organic-listings.html","Organic Listings Definition","The complete definition of Organic Listings. The term Organic Listings and its definition. Looking for the definition of Organic Listings?","Organic Listings Glossary Definition","Organic Listings",18,200,"00:00:00.031"]
[null,45,"http://www.thesearchagency.com/search-marketing-glossary/button-exchange.html","Button Exchange Definition","The complete definition of Button Exchange. The term Button Exchange and its definition. Looking for the definition of Button Exchange?","Button Exchange Glossary Definition","Button Exchange",19,200,"00:00:00.031"]
[null,46,"http://www.thesearchagency.com/search-marketing-glossary/organic-search.html","Organic Search Definition","The complete definition of Organic Search. The term Organic Search and its definition. Looking for the definition of Organic Search?","Organic Search Glossary Definition","Organic Search",19,200,"00:00:00.016"]
[null,47,"http://www.thesearchagency.com/search-marketing-glossary/category-terms.html","Category Terms Definition","The complete definition of Category Terms. The term Category Terms and its definition. Looking for the definition of Category Terms?","Category Terms Glossary Definition","Category Terms",19,200,"00:00:00.031"]
[null,48,"http://www.thesearchagency.com/search-marketing-glossary/outbound-links.html","Outbound Links Definition","The complete definition of Outbound Links. The term Outbound Links and its definition. Looking for the definition of Outbound Links?","Outbound Links Glossary Definition","Outbound Links",18,200,"00:00:00.078"]
[null,49,"http://www.thesearchagency.com/search-marketing-glossary/click-through-rate-ctr.html","Click Through Rate (CTR) Definition","The complete definition of Click Through Rate (CTR). The term Click Through Rate (CTR) and its definition. Looking for the definition of Click Through Rate (CTR)?","Click Through Rate (CTR) Glossary Definition","Click Through Rate (CTR)",19,200,"00:00:00.078"]
[null,50,"http://www.thesearchagency.com/search-marketing-glossary/packet-sniffing.html","Packet Sniffing Definition","The complete definition of Packet Sniffing. The term Packet Sniffing and its definition. Looking for the definition of Packet Sniffing?","Packet Sniffing Glossary Definition","Packet Sniffing",19,200,"00:00:00.016"]
[null,51,"http://www.thesearchagency.com/search-marketing-glossary/competitive-landscape.html","Competitive Landscape Definition","The complete definition of Competitive Landscape. The term Competitive Landscape and its definition. Looking for the definition of Competitive Landscape?","Competitive Landscape Glossary Definition","Competitive Landscape",49,200,"00:00:00.047"]
[null,52,"http://www.thesearchagency.com/search-marketing-glossary/paid-inclusion.html","Paid Inclusion Definition","The complete definition of Paid Inclusion. The term Paid Inclusion and its definition. Looking for the definition of Paid Inclusion?","Paid Inclusion Glossary Definition","Paid Inclusion",19,200,"00:00:00.016"]
[null,53,"http://www.thesearchagency.com/search-marketing-glossary/competitors-terms.html","Competitor's Terms Definition","The complete definition of Competitor's Terms. The term Competitor's Terms and its definition. Looking for the definition of Competitor's Terms?","Competitor's Terms Glossary Definition","Competitor's Terms",19,200,"00:00:00.094"]
[null,54,"http://www.thesearchagency.com/search-marketing-glossary/paid-listings.html","Paid Listings Definition","The complete definition of Paid Listings. The term Paid Listings and its definition. Looking for the definition of Paid Listings?","Paid Listings Glossary Definition","Paid Listings",19,200,"00:00:00.031"]
[null,55,"http://www.thesearchagency.com/search-marketing-glossary/conversion-rate.html","Conversion Rate Definition","The complete definition of Conversion Rate. The term Conversion Rate and its definition. Looking for the definition of Conversion Rate?","Conversion Rate Glossary Definition","Conversion Rate",19,200,"00:00:00.031"]
[null,56,"http://www.thesearchagency.com/search-marketing-glossary/paid-placement.html","Paid Placement Definition","The complete definition of Paid Placement. The term Paid Placement and its definition. Looking for the definition of Paid Placement?","Paid Placement Glossary Definition","Paid Placement",19,200,"00:00:00.016"]
[null,57,"http://www.thesearchagency.com/search-marketing-glossary/cost-per-acquisition.html","Cost Per Acquisition Definition","The complete definition of Cost Per Acquisition. The term Cost Per Acquisition and its definition. Looking for the definition of Cost Per Acquisition?","Cost Per Acquisition Glossary Definition","Cost Per Acquisition",19,200,"00:00:00.031"]
[null,58,"http://www.thesearchagency.com/search-marketing-glossary/pay-for-performance.html","Pay For Performance Definition","The complete definition of Pay For Performance. The term Pay For Performance and its definition. Looking for the definition of Pay For Performance?","Pay For Performance Glossary Definition","Pay For Performance",19,200,"00:00:00.031"]
[null,59,"http://www.thesearchagency.com/search-marketing-glossary/cost-per-action-cpa.html","Cost Per Action (CPA) Definition","The complete definition of Cost Per Action (CPA). The term Cost Per Action (CPA) and its definition. Looking for the definition of Cost Per Action (CPA)?","Cost Per Action (CPA) Glossary Definition","Cost Per Action (CPA)",19,200,"00:00:00.031"]
[null,60,"http://www.thesearchagency.com/search-marketing-glossary/pay-per-call.html","Pay-Per-Call Definition","The complete definition of Pay-Per-Call. The term Pay-Per-Call and its definition. Looking for the definition of Pay-Per-Call?","Pay-Per-Call Glossary Definition","Pay-Per-Call",19,200,"00:00:00.031"]
[null,61,"http://www.thesearchagency.com/search-marketing-glossary/cost-per-click-cpc.html","Cost Per Click (CPC) Definition","The complete definition of Cost Per Click (CPC). The term Cost Per Click (CPC) and its definition. Looking for the definition of Cost Per Click (CPC)?","Cost Per Click (CPC) Glossary Definition","Cost Per Click (CPC)",19,200,"00:00:00.031"]

{"sheet":"Spidered Urls_1","index":10,"n_rows":110,"n_cols":11,"rows_kept":110,"cut":false,"hidden":false,"merged":[]}
[]
[]
[null,"Spidered Urls_1"]
[]
[null,"Spidered URLs (raw data)"]
[null,"Total Count: 100"]
[]
[]
[null,"PageID","URL","Title","Meta Description","Meta Keyword","H1","Page Size","Response Code","Response Time","Comments"]
[null,1,"http://www.thesearchagency.com/"," Search Engine Marketing and Search Engine Optimization Firm - The Search Agency","Discover the search engine marketing firm, The Search Agency offering search engine optimization (SEO), search engine marketing (SEM), and conversion path optimization (CPO) services.","search engine optimization, search engine marketing firm, search engine marketing, search engine, search, optimization, seo, sem, cpo, conversion rate, conversion, technology, process, service, results, the search agency","THE SEARCH AGENCY - SEARCH ENGINE OPTIMIZATION/MARKETING FIRM",12,200,"00:00:00.094"]
[null,2,"http://www.thesearchagency.com/about-us.html","About Internet Marketing and The Search Agency","Learn all about the internet marketing philosophy, technology, and ideals of The Search Agency. Get to know about this amazing agency.","Internet marketing, online marketing, search marketing, internet, online, search, optimization, conversion path, conversions, conversion, sem, seo, cpo ","About The Search Agency and Internet Marketing",11,200,"00:00:00.031"]
[null,3,"http://www.thesearchagency.com/search-marketing-philosophy.html","Professional Search Engine Marketing Philosophy - The Search Agency","Read the professional search engine marketing philosophy of The Search Agency and what we believe in when it comes to client interaction and process.","professional search engine marketing, The search agency, philosophy, Internet marketing, online marketing, search marketing, internet, online, search, optimization, conversion path, conversions, conversion, sem, seo, cpo","Professional Search Engine Marketing Philosophy",10,200,"00:00:00.031"]
[null,4,"http://www.thesearchagency.com/management-team.html","Internet Marketing Services Management Team - The Search Agency","Looking for internet marketing services? Learn about The Search Agency's Management Team, the experience they bring, and the accomplishments they've made.","Internet marketing services management team, internet marketing services, internet marketing service, internet marketing, internet, online, search, optimization, conversion path, conversions, conversion, sem, seo, cpo","Internet Marketing Services Management Team",20,200,"00:00:00.031"]
[null,5,"http://www.thesearchagency.com/locations.html","Integrated Online Marketing Agency - The Search Agency","Looking for an integrated online marketing agency? Turn to The Search Agency. Find our locations and how we can be contacted.","los angeles search marketing agency, los angeles search marketing, search marketing agency, search engine marketing, the search agency","Integrated Online Marketing Agency - Office Locations",11,200,"00:00:00.031"]
[null,6,"http://www.thesearchagency.com/award-winning-search-marketing.html","SEO, Search Engine Marketing Certification, Awards, and Affiliates","Discover the SEO and search engine marketing certification, awards, and affiliates of The Search Agency. Learn about them all here. ","seo search engine marketing certification, search engine marketing awards, search engine marketing affiliates, internet, online, search, optimization, conversion path, conversions, conversion, sem, seo, cpo","SEO and Search Engine Marketing Certifications",15,200,"00:00:00.031"]
[null,7,"http://www.thesearchagency.com/jobs.html","Search Engine Marketing Jobs - The Search Agency","Discover search engine marketing jobs available at The Search Agency and join one of the top SEM/SEO agencies in the business.","search engine marketing jobs, search engine marketing jobs, search engine marketing careers, search engine marketing career, Internet marketing, online marketing, search marketing, internet, online, search, optimization, conversion path, conversions, conversion, sem, seo, cpo","Search Engine Marketing Jobs from The Search Agency",159,200,"00:00:00.078"]
[null,8,"http://www.thesearchagency.com/contact-us.aspx","Los Angeles Search Engine Marketing - Contact Us - Corporate Offices","Find out about the corporate offices of the los angeles search engine marketing company, The Search Agency, addresses, and how to contact us.","los angeles search engine marketing, The search agency corporate offices, the search agency, search marketing services, search engine marketing service, search engine marketing services, search marketing service, ","Contact Us",12,200,"00:00:00.063"]
[null,9,"http://www.thesearchagency.com/integrated-online-marketing-services.html","Integrated Online Marketing Services - The Search Agency","Discover the online marketing services offered by The Search Agency and how you can reach your clients effectively online. SEO, SEM, online marketing, and more.","search engine marketing services, search engine marketing, seo, sem, search engine optimization, conversion path, display ads, banner ads, the search agency","Integrated Online Marketing Services",32,200,"00:00:00.031"]
[null,10,"http://www.thesearchagency.com/search-engine-marketing-sem.html","Search Engine Marketing - SEM Services - The Search Agency","Searching for search engine marketing services (SEM)? You've come to the right place. Welcome to The Search Agency.","Search engine marketing, sem ,search engine marketing services, sem services, the search agency","Search Engine Marketing (SEM)",13,200,"00:00:00.031"]
[null,11,"http://www.thesearchagency.com/search-engine-optimization.html","Search Engine Optimization - SEO Service Overview – The Search Agency","Search engine optimization (SEO) is a delicate process that requires a delicate and skilled touch. The Search Agency can help you with these services and more.","Search engine optimization, seo, search engine optimization services, search optimization, optimize, the search agency","Search Engine Optimization (SEO)",11,200,"00:00:00.109"]
[null,12,"http://www.thesearchagency.com/consumer-experience.html","Consumer Experience - The Search Agency","Learn about consumer experience and the value The Search Agency can add to your performance-based marketing.","consumer experience, landing page optimization, conversion path optimization, conversion rate optimization, the search agency","Consumer Experience",13,200,"00:00:00.078"]
[null,13,"http://www.thesearchagency.com/comparison-shopping.html","Comparison Shopping Management - Return on YOUR Investment - The Search Agency","Learn about ROI-based comparison shopping management from The Search Agency and how it truly is a return on your investment. ","Comparison shopping, comparison shopping engines, comparison shopping management, CSM, return on investment","Comparison Shopping Management",11,200,"00:00:00.031"]
[null,14,"http://www.thesearchagency.com/display-advertising.html","Display Advertising - Return on YOUR Investment - The Search Agency","Learn about ROI-based display advertising from The Search Agency and how it truly is a return on your investment. ","Display advertising, roi based display advertising, advertising display, return on investment","ROI-Based Display Advertising",11,200,"00:00:00.031"]
[null,15,"http://www.thesearchagency.com/social-media-marketing.html","Social Media Marketing - The Search Agency","Want to engage with customers through social networks like Facebook, Twitter, and MySpace? Perhaps you need a newer and more creative way to reach your clientele? The Search Agency provides Social Media marketing services for your every need.","social media marketing, media marketing, social media, smm, social media services, social media marketing services, social networking, social networks, the search agency","Social Media Marketing (SMM)",11,200,"00:00:00.031"]
[null,16,"http://www.thesearchagency.com/integrated-marketing-solutions.html","Integrated Marketing Solutions - The Search Agency","Looking for integrated marketing solutions (IMS)? Turn to The Search Agency. We have the SEM, SEO, e-mail and display services your business needs.","Integrated marketing solutions, ims, integrated marketing, sem, seo, email, e-mail, display, services, the search agency","Integrated Marketing Solutions",11,200,"00:00:00.031"]
[null,17,"http://www.thesearchagency.com/online-marketing-tools-technology.html","SEO and SEM Tools and Technology from The Search Agency","Looking for SEO and SEM tools and technology for your website? The Search Agency offers cutting edge services and technologies to help with your website and business needs.","Seo tools, sem tools, seo technology, sem technology, search engine optimization, search engine marketing, tools, technology, the search agency","Online Marketing Tools and Technology",13,200,"00:00:00.016"]
[null,18,"http://www.thesearchagency.com/web-analytics-tools-reporting.html","Analytics Tools and Reports - AdMax - The Search Agency","The Search Agency offers analytics tools and reports to help you track clicks, ROI, and other metrix-driven activity on your website. Learn more here.","analytics tools, web analytics reports, Seo tools, sem tools, seo technology, sem technology, search engine optimization, search engine marketing, tools, technology, the search agency","AdMax™ Analytics and Reporting",33,200,"00:00:00.031"]
[null,19,"http://www.thesearchagency.com/bid-optimization-tools-ppc.html","Bid Optimization Tools, AdMax PPC Campaign Management, The Search Agency","Get the bid optimization and management you need with The Search Agency's AdMax platform. Learn more about this tool here.","Bid optimization, ppc campaign management, Seo tools, sem tools, seo technology, sem technology, search engine optimization, search engine marketing, tools, technology, the search agency","AdMax™ Bid Optimization and PPC Campaign Management",11,200,"00:00:00.031"]
[null,20,"http://www.thesearchagency.com/phone-tracking-sem-campaigns.html","Phone Tracking for Online Advertising and SEM Campaigns - The Search Agency","If you need phone tracking for online advertising and SEM campaigns, you need the services of The Search Agency. Track your online success.","Phone tracking, online phone tracking, phone tracking sem campaigns, Seo tools, sem tools, seo technology, sem technology, search engine optimization, search engine marketing, tools, technology, the search agency","AdMax™ Phone Conversion Tracking",40,200,"00:00:00.047"]
[null,21,"http://www.thesearchagency.com/website-architecture-analysis-tools.html","AdMax Website Architecture Analysis Tools - Best Solutions - The Search Agency","Need website architecture analysis tools? Want to find out the best way to structure your site? Turn to The Search Agency.","Website architecture, site architecture, analysis tools, best website architecture, Seo tools, sem tools, seo technology, sem technology, search engine optimization, search engine marketing, tools, technology, the search agency","AdMax™ Website Architecture Analysis Tools",11,200,"00:00:00.031"]
[null,22,"http://www.thesearchagency.com/website-content-tools-seo.html","Assessing Website Content - AdMax Content Tools - The Search Agency","Need help assessing website content? Looking for SEO content tools? The Search Agency has the content analysis tools and technology you need.","Assessing website content, seo content tools, Seo tools, sem tools, seo technology, sem technology, search engine optimization, search engine marketing, tools, technology, the search agency","Assessing Website Content - AdMax™ Content Analysis Tool",11,200,"00:00:00.031"]
[null,23,"http://www.thesearchagency.com/news.html","Search Engine Marketing and Optimization News and Events - The Search Agency","Get the latest search engine marketing and optimization news and events of The Search Agency. News, events, and press releases.","Search engine marketing and optimization news, search engine marketing news, search engine optimization news, internet marketing, online marketing, search marketing, internet, online, search, optimization, conversion path, conversions, conversion, sem, seo, cpo","Search Engine Marketing and Optimization News and Events",10,200,"00:00:00.031"]
[null,24,"http://www.thesearchagency.com/press-releases.html","SEM and SEO News - Press Releases - The Search Agency","Read the latest SEM and SEO news of The Search Agency with the following press releases. Read up and get informed. ","Sem and seo news, sem news, seo news, internet marketing, online marketing, search marketing, internet, online, search, optimization, conversion path, conversions, conversion, sem, seo, cpo","The Search Agency Press Releases",13,200,"00:00:00.016"]
[null,25,"http://www.thesearchagency.com/inthenews.html","Browse Media Coverage for The Search Agency","Review recent media coverage for the latest quotes and information. Get proven solutions with The Search Agency. ","search engine marketing, search engine optimization, online media coverage, online marketing, media coverage, online optimization, case studies, the search agency","The Search Agency in the News",13,200,"00:00:00.203"]
[null,26,"http://www.thesearchagency.com/events.html"," Search Engine Marketing Agency Events - The Search Agency ","search engine marketing agency events, search engine marketing agency, search engine marketing, internet marketing, online marketing, search marketing, internet, online, search, optimization, conversion path, conversions, conversion, sem, seo, cpo","Search engine marketing agency events! Find out the latest events The Search Agency is involved in. ","Online Marketing Conferences",18,200,"00:00:00.031"]
[null,27,"http://www.thesearchagency.com/online-marketing-news.html","Online Marketing News -The Search Agency","Read the latest search marketing news from The Search Agency's very own The Search Agent's blog. Stay up to date with the latest search marketing trends in SEM and SEO.","search engine marketing news, search marketing news, search marketing, seo news, sem news, trends, trend, the search agents, the search agency","Online Marketing News from The Search Agents Blog",15,200,"00:00:00.016"]
[null,28,"http://www.thesearchagency.com/online-marketing-resources.html","Browse Online Marketing Resources from The Search Agency","For practical solutions, browse online marketing resources and learn the latest developments. Get answers from The Search Agency. ","online marketing resources, search engine optimization, online marketing, online optimization, search engine, marketing resources, the search agency","Integrated Online Marketing Resources",10,200,"00:00:00.031"]
[null,29,"http://www.thesearchagency.com/articles.html","Review Authored Search Engine Marketing Articles from The Search Agency","Browse authored search engine marketing articles from contributing team members. Get the latest expert information from The Search Agency. ","search engine optimization, online marketing resources, authored articles, online marketing, online optimization, marketing resources, the search agency","The Search Agency Byline Articles",15,200,"00:00:00.031"]
[null,30,"http://www.thesearchagency.com/casestudies/","Review Case Studies from The Search Agency","To see real results, browse case studies of successful solutions. For integrated online marketing, turn to The Search Agency.","search engine marketing, search engine optimization, marketing case studies, online marketing, online optimization, case studies, the search agency","Integrated Online Marketing Case Studies",11,200,"00:00:00.016"]
[null,31,"http://www.thesearchagency.com/whitepapers/","Professional Search Engine Marketing White Papers from The Search Agency","Review professional search engine marketing white papers to find answers regarding your search engine marketing firm. For accurate performance information, choose The Search Agency. ","search engine optimization, search engine marketing, marketing white papers, search marketing firm, online optimization, online marketing, the search agency ","The Search Agency White Papers",17,200,"00:00:00.016"]
[null,32,"http://www.thesearchagency.com/search-marketing-glossary/","Search Term Glossary","Search Term Glossary","Search Term Glossary","Glossary",25,200,"00:00:00.031"]
[null,33,"http://www.thesearchagency.com/search-engines/","Search Engine Guide","Search Engine Guide","Search Engine Guide","Search Engine Guide",14,200,"00:00:00.016"]
[null,34,"http://www.thesearchagency.com/2009/20091020-deloitte-technology-fast-500.html","The Search Agency Ranked 83rd Fastest Growing Company in North America on Deloitte's 2009 Technology Fast 500 - Press Release, October 20, 2009","Read how The Search Agency was ranked #83 in Deloitte's 2009 Technology Fast 500","Deloitte Technology Fast 500","The Search Agency Ranked 83rd Fastest Growing Company in North America on Deloitte's 2009 Technology Fast 500",13,200,"00:00:00.094"]
[null,35,"http://www.thesearchagency.com/free-online-marketing-audit.html","FREE online marketing audit from The Search Agency","Get your FREE online marketing audit from The Search Agency. Find out how your business is doing in the online marketing space.","Free online marketing audit, online marketing audit, marketing audit, search engine optimization, search engine marketing, online marketing, the search agency","FREE Online Marketing Audit",11,200,"00:00:00.016"]
[null,36,"http://www.thesearchagency.com/pdfs/admax-reporting-and-analytics.pdf",null,null,null,null,null,200,"00:00:00"]
[null,37,"http://www.thesearchagency.com/pdfs/admax-phone-conversion-tracking.pdf",null,null,null,null,null,200,"00:00:00"]
[null,38,"http://www.thesearchagency.com/pdfs/admax-architecture-diagnosic-report.pdf",null,null,null,null,null,200,"00:00:00"]
[null,39,"http://www.thesearchagency.com/pdfs/admax-content-analysis-tool.pdf",null,null,null,null,null,200,"00:00:00"]
[null,40,"http://www.thesearchagency.com/2010/20100608/the-search-agency-expands-its-east-coast-presence.html","The Search Agency Expands its East Coast Presence","The Search Agency opens new office in Baltimore, MD to support clients across the country","The Search Agency, TSA press release, TSA growth, TSA expansion","The Search Agency Expands its East Coast Presence",10,200,"00:00:00.047"]
[null,41,"http://www.thesearchagency.com/advertising-age-top-search-marketing-firm.html","Advertising Age Names The Search Agency a Top U.S. Search Marketing Firm","Advertising Age named The Search Agency a Top U.S. Search Markeitng Firm in its 2010 Agency Report","Ad Age, Advertising Age, Top Search Marketing Firms, Top Search Marketing Agencies","Advertising Age Names The Search Agency a Top U.S. Search Marketing Firm",11,200,"00:00:00.031"]
[null,42,"http://www.thesearchagency.com/2010/20100127-the-search-agency-continues-strong-growth-in-2009.html","The Search Agency Continues Strong Growth in 2009","Read about The Search Agency's Performance and Growth in 2009","search agency, the search agency, search agency results","The Search Agency Continues Strong Growth in 2009",11,200,"00:00:00.031"]
[null,43,"http://www.thesearchagency.com/2009/20091112-david-hughes-authors-chapter.html","David Hughes Authors Chapter on Convergence of Search and Direct Marketing - Press Release - November 12, 2009","Read about new research on search marketing and direct marketing","David Hughes, SEO, SEM, search marketing, direct marketing","David Hughes Authors Chapter on Convergence of Search and Direct Marketing",31,200,"00:00:00.031"]
[null,44,"http://www.thesearchagency.com/2009/2009093-internationalexpansion.html","The Search Agency Accelerates its International Expansion – Press Release - September 3, 2009 ","Read how The Search Agency Accelerates its International Expansion and the new locations TSA has established offices. Learn more and get search marketing services from The Search Agency.","The Search Agency Accelerates its International Expansion, the search agency, search agency, international expansion, the search agency offices","The Search Agency Accelerates its International Expansion",10,200,"00:00:00.016"]
[null,45,"http://www.thesearchagency.com/2009/20090825-cyberdefenderpartnership.html","CyberDefender Partners With The Search Agency","CyberDefender partners with The Search Agency. Read more about this partnership at TheSearchAgency.com.","Cyberdefender partnership, cyberdefender the search agency, cyberdefender search engine marketing, cyberdefender search engine optimization, ssp, search submit pro, the search agency","CyberDefender Partners With The Search Agency To Expand Customer Acquisition Efforts",14,200,"00:00:00.031"]
[null,46,"http://www.thesearchagency.com/2009/20090616-thesearchagencymattkainchiefrevenueofficer.html","Matt Kain Named Chief Revenue Officer – The Search Agency","Breaking news! Matt Kain has been named Chief Revenue Officer of The Search Agency. Learn about his new involvement with The Search Agency. ","Matt kain chief revenue officer, matt kain cro, the search agency, search engine marketing, search engine optimization, ppc, cpo, the search agency","The Search Agency Names Matt Kain Chief Revenue Officer",11,200,"00:00:00.031"]
[null,47,"http://www.thesearchagency.com/2009/20090529-advertisingagetopsearchmarketingfirm.html","Advertising Age Names The Search Agency a Top U.S. Search Marketing Firm - Press Releases","Advertising Age Names The Search Agency a Top U.S. Search Marketing Firm - Press Release. News and events of The Search Agency.","Advertising Age Names The Search Agency a Top U.S. Search Marketing Firm, search engine marketing, internet marketing, online marketing, search marketing, internet, online, search, optimization, conversion path, conversions, conversion, sem, seo, cpo","Advertising Age Names The Search Agency a Top U.S. Search Marketing Firm",11,200,"00:00:00.016"]
[null,48,"http://www.thesearchagency.com/2008/rising-star-on-deloitte.html","The Search Agency Named Rising Star in Deloitte's Technology Fast 500 Program - Press Releases","The Search Agency Named Rising Star in Deloitte's Technology Fast 500 Program - Press Release. News and events of The Search Agency.","The Search Agency Named Rising Star in Deloitte's Technology Fast 500 Program , search engine marketing, internet marketing, online marketing, search marketing, internet, online, search, optimization, conversion path, conversions, conversion, sem, seo, cpo","The Search Agency Named Rising Star in Deloitte's Technology Fast 500 Program",12,200,"00:00:00.031"]
[null,49,"http://www.thesearchagency.com/2008/the-search-agency-opens-three-new-offices.html","The Search Agency Opens Three New Offices - Press Releases","The Search Agency Opens Three New Offices. Learn more about it in the press release from The Search Agency.","The Search Agency Opens Three New Offices, internet marketing, online marketing, search marketing, internet, online, search, optimization, conversion path, conversions, conversion, sem, seo, cpo","The Search Agency Opens Three New Offices",10,200,"00:00:00.031"]
[null,50,"http://www.thesearchagency.com/2008/may-worldwidepartners-southkorea.html","Worldwide Partners Enters South Korea - Press Releases","Worldwide Partners Enters South Korea; Adds Search And CRM Specialists in the US - Press Release. News and events of The Search Agency.","Worldwide Partners Enters South Korea; Adds Search And CRM Specialists in the US, search engine marketing, internet marketing, online marketing, search marketing, internet, online, search, optimization, conversion path, conversions, conversion, sem, seo, cpo","Worldwide Partners Enters South Korea; Adds Search And CRM Specialists in the US",12,200,"00:00:00.047"]
[null,51,"http://www.thesearchagency.com/2008/may-barbara-palmer.html","The Search Agency Appoints Barbara Palmer as President - Press Releases","The Search Agency Appoints Barbara Palmer as President. Press release, news and events of The Search Agency.","The Search Agency Appoints Barbara Palmer as President, search engine marketing, internet marketing, online marketing, search marketing, internet, online, search, optimization, conversion path, conversions, conversion, sem, seo, cpo","The Search Agency Appoints Barbara Palmer as President",12,200,"00:00:00.016"]
[null,52,"http://www.thesearchagency.com/2008/apr-jmi.html","The Search Agency Announces Strategic Investment From JMI Equity - Press Releases","The Search Agency Announces Strategic Investment From JMI Equity - Press Release. News and events of The Search Agency.","The Search Agency Announces Strategic Investment From JMI Equity, search engine marketing, internet marketing, online marketing, search marketing, internet, online, search, optimization, conversion path, conversions, conversion, sem, seo, cpo","The Search Agency Announces Strategic Investment From JMI Equity",11,200,"00:00:00.031"]
[null,53,"http://www.thesearchagency.com/2007/aug-yahooambassador.html","The Search Agency Named As Yahoo! Search Marketing Certified Ambassador - Press Releases","The Search Agency Named As Yahoo! Search Marketing Certified Ambassador. Read this press release and other news and events of The Search Agency.","The Search Agency Named As Yahoo! Search Marketing Certified Ambassador, search engine marketing, internet marketing, online marketing, search marketing, internet, online, search, optimization, conversion path, conversions, conversion, sem, seo, cpo","The Search Agency Named As Yahoo! Search Marketing Certified Ambassador",10,200,"00:00:00.078"]
[null,54,"http://www.thesearchagency.com/2007/jun-yahoo-panama-release.html","Yahoo opens Panama search ad platform - Press Releases","Yahoo opens Panama search ad platform. Read this press release and other news and events of The Search Agency.","Yahoo opens Panama search ad platform, search engine marketing, internet marketing, online marketing, search marketing, internet, online, search, optimization, conversion path, conversions, conversion, sem, seo, cpo","Yahoo Opens Panama Search Ad Platform",11,200,"00:00:00.031"]
[null,55,"http://www.thesearchagency.com/2007/mar-conversionpathoptimization.html","Launch of Online Conversion Rate Optimization Service - Press Releases","Press Release: The Search Agency Announces the Launch of Online Conversion Rate Optimization Service. News and events of The Search Agency.","The Search Agency Announces the Launch of Online Conversion Rate Optimization Service, internet marketing, online marketing, search marketing, internet, online, search, optimization, conversion path, conversions, conversion, sem, seo, cpo","The Search Agency Announces the Launch of Online Conversion Rate Optimization Service",11,200,"00:00:00.016"]
[null,56,"http://www.thesearchagency.com/2006/dec-yahoo-panama-integration.html","The Search Agency Provides Seamless Integration With Yahoo! Panama - Press Releases","The Search Agency Provides Seamless Integration with Yahoo!'s Panama. Learn more about it in the press release from The Search Agency.","The Search Agency Provides Seamless Integration With Yahoo!'s New Panama Search Marketing Platform, internet marketing, online marketing, search marketing, internet, online, search, optimization, conversion path, conversions, conversion, sem, seo, cpo","The Search Agency Provides Seamless Integration With Yahoo!'s New \"Panama\" Search Marketing Platform",12,200,"00:00:00.047"]
[null,57,"http://www.thesearchagency.com/2006/nov-partner-summit.html","The Search Agency Hosts Clients and Partners Summit - Press Releases","The Search Agency Hosts Clients and Partners at Search Engine Marketing and Optimization Partner Summit. News and events of The Search Agency.","The Search Agency Hosts Clients and Partners at Search Engine Marketing and Optimization Partner Summit, internet marketing, online marketing, search marketing, internet, online, search, optimization, conversion path, conversions, conversion, sem, seo, cpo","The Search Agency Hosts Clients and Partners at Search Engine Marketing and Optimization Partner Summit",11,200,"00:00:00.078"]
[null,58,"http://www.thesearchagency.com/2006/sep-move-in.html","The Search Agency Completes Move-In - Press Releases","The Search Agency Completes Move-In to Accommodate Hiring Growth. News, press releases, and events of The Search Agency.","The Search Agency Completes Move-In to Accommodate Hiring Growth, internet marketing, online marketing, search marketing, internet, online, search, optimization, conversion path, conversions, conversion, sem, seo, cpo","The Search Agency Completes Move-In to Accommodate Hiring Growth",11,200,"00:00:00.125"]
[null,59,"http://www.thesearchagency.com/pdfs/latinteractivo.pdf",null,null,null,null,null,200,"00:00:00"]
[null,60,"http://www.thesearchagency.com/casestudies/casestudy-avalonbay.pdf",null,null,null,null,null,200,"00:00:00"]
[null,61,"http://www.thesearchagency.com/casestudies/casestudy-lavalife.pdf",null,null,null,null,null,200,"00:00:00"]
[null,62,"http://www.thesearchagency.com/casestudies/casestudy-moviedestination.pdf",null,null,null,null,null,200,"00:00:00"]
[null,63,"http://www.thesearchagency.com/conversion-path-optimization.html","301 Moved Permanently","No Meta Description","No Meta Keywords","Moved Permanently",0,301,"00:00:00.016"]
[null,64,"http://www.thesearchagency.com/casestudies/casestudy-napster.pdf",null,null,null,null,null,200,"00:00:00"]
[null,65,"http://www.thesearchagency.com/casestudies/casestudy-onlineretail.pdf",null,null,null,null,null,200,"00:00:00"]
[null,66,"http://www.thesearchagency.com/casestudies/casestudy-realestate.pdf",null,null,null,null,null,200,"00:00:00"]
[null,67,"http://www.thesearchagency.com/whitepapers/tsa-whitepaper-google-instant.pdf",null,null,null,null,null,200,"00:00:00"]
[null,68,"http://www.thesearchagency.com/whitepapers/tsa-white-paper-bid-optimization.pdf",null,null,null,null,null,200,"00:00:00"]
[null,69,"http://www.thesearchagency.com/whitepapers/tsa_whitepaper_location_based_social_media.pdf",null,null,null,null,null,200,"00:00:00"]
[null,70,"http://www.thesearchagency.com/whitepapers/TSA_white_paper_SEM_and_SEO_Core_Drivers.pdf",null,null,null,null,null,200,"00:00:00"]
[null,71,"http://www.thesearchagency.com/whitepapers/TSA_white_paper_10_Questions_to_Ask.pdf",null,null,null,null,null,200,"00:00:00"]
[null,72,"http://www.thesearchagency.com/search-marketing-glossary/ad-group.html","Ad Group Definition","The complete definition of Ad Group. The term Ad Group and its definition. Looking for the definition of Ad Group?","Ad Group Glossary Definition","Ad Group",19,200,"00:00:00.047"]
[null,73,"http://www.thesearchagency.com/search-marketing-glossary/local-search.html","Local Search Definition","The complete definition of Local Search. The term Local Search and its definition. Looking for the definition of Local Search?","Local Search Glossary Definition","Local Search",19,200,"00:00:00.047"]
[null,74,"http://www.thesearchagency.com/search-marketing-glossary/admax-bid-tool.html","AdMax™ Bid Tool Definition","The complete definition of AdMax™ Bid Tool. The term AdMax™ Bid Tool and its definition. Looking for the definition of AdMax™ Bid Tool?","AdMax™ Bid Tool Glossary Definition","AdMax™ Bid Tool",19,200,"00:00:00.016"]
[null,75,"http://www.thesearchagency.com/search-marketing-glossary/meta-description-tag.html","Meta Description Tag Definition","The complete definition of Meta Description Tag. The term Meta Description Tag and its definition. Looking for the definition of Meta Description Tag?","Meta Description Tag Glossary Definition","Meta Description Tag",19,200,"00:00:00.031"]
[null,76,"http://www.thesearchagency.com/search-marketing-glossary/algorithm.html","Algorithm Definition","The complete definition of Algorithm. The term Algorithm and its definition. Looking for the definition of Algorithm?","Algorithm Glossary Definition","Algorithm",19,200,"00:00:00.031"]
[null,77,"http://www.thesearchagency.com/search-marketing-glossary/meta-keywords-tag.html","Meta Keywords Tag Definition","The complete definition of Meta Keywords Tag. The term Meta Keywords Tag and its definition. Looking for the definition of Meta Keywords Tag?","Meta Keywords Tag Glossary Definition","Meta Keywords Tag",19,200,"00:00:00.016"]
[null,78,"http://www.thesearchagency.com/search-marketing-glossary/algorithmic-results.html","Algorithmic Results Definition","The complete definition of Algorithmic Results. The term Algorithmic Results and its definition. Looking for the definition of Algorithmic Results?","Algorithmic Results Glossary Definition","Algorithmic Results",19,200,"00:00:00.016"]
[null,79,"http://www.thesearchagency.com/search-marketing-glossary/meta-search-engine.html","Meta Search Engine Definition","The complete definition of Meta Search Engine. The term Meta Search Engine and its definition. Looking for the definition of Meta Search Engine?","Meta Search Engine Glossary Definition","Meta Search Engine",19,200,"00:00:00.031"]
[null,80,"http://www.thesearchagency.com/search-marketing-glossary/alt-text.html","Alt Text Definition","The complete definition of Alt Text. The term Alt Text and its definition. Looking for the definition of Alt Text?","Alt Text Glossary Definition","Alt Text",19,200,"00:00:00.094"]
[null,81,"http://www.thesearchagency.com/search-marketing-glossary/meta-tags.html","Meta Tags Definition","The complete definition of Meta Tags. The term Meta Tags and its definition. Looking for the definition of Meta Tags?","Meta Tags Glossary Definition","Meta Tags",19,200,"00:00:00.016"]
[null,82,"http://www.thesearchagency.com/search-marketing-glossary/api.html","API Definition","The complete definition of API. The term API and its definition. Looking for the definition of API?","API Glossary Definition","API",19,200,"00:00:00.031"]
[null,83,"http://www.thesearchagency.com/search-marketing-glossary/mirror-sites.html","Mirror Sites Definition","The complete definition of Mirror Sites. The term Mirror Sites and its definition. Looking for the definition of Mirror Sites?","Mirror Sites Glossary Definition","Mirror Sites",19,200,"00:00:00.016"]
[null,84,"http://www.thesearchagency.com/search-marketing-glossary/applet.html","Applet Definition","The complete definition of Applet. The term Applet and its definition. Looking for the definition of Applet?","Applet Glossary Definition","Applet",19,200,"00:00:00.031"]
[null,85,"http://www.thesearchagency.com/search-marketing-glossary/mobile-search.html","Mobile Search Definition","The complete definition of Mobile Search. The term Mobile Search and its definition. Looking for the definition of Mobile Search?","Mobile Search Glossary Definition","Mobile Search",19,200,"00:00:00.031"]
[null,86,"http://www.thesearchagency.com/search-marketing-glossary/backlinks.html","Backlinks Definition","The complete definition of Backlinks. The term Backlinks and its definition. Looking for the definition of Backlinks?","Backlinks Glossary Definition","Backlinks",19,200,"00:00:00.031"]
[null,87,"http://www.thesearchagency.com/search-marketing-glossary/modifiers.html","Modifiers Definition","The complete definition of Modifiers. The term Modifiers and its definition. Looking for the definition of Modifiers?","Modifiers Glossary Definition","Modifiers",19,200,"00:00:00.031"]
[null,88,"http://www.thesearchagency.com/search-marketing-glossary/banner.html","Banner Definition","The complete definition of Banner. The term Banner and its definition. Looking for the definition of Banner?","Banner Glossary Definition","Banner",19,200,"00:00:00.031"]
[null,89,"http://www.thesearchagency.com/search-marketing-glossary/natural-search.html","Natural Search Definition","The complete definition of Natural Search. The term Natural Search and its definition. Looking for the definition of Natural Search?","Natural Search Glossary Definition","Natural Search",19,200,"00:00:00.031"]
[null,90,"http://www.thesearchagency.com/search-marketing-glossary/bid-to-position.html","Bid to Position Definition","The complete definition of Bid to Position. The term Bid to Position and its definition. Looking for the definition of Bid to Position?","Bid to Position Glossary Definition","Bid to Position",19,200,"00:00:00.031"]
[null,91,"http://www.thesearchagency.com/search-marketing-glossary/opt-in.html","Opt-In Definition","The complete definition of Opt-In. The term Opt-In and its definition. Looking for the definition of Opt-In?","Opt-In Glossary Definition","Opt-In",19,200,"00:00:00.031"]
[null,92,"http://www.thesearchagency.com/search-marketing-glossary/blog.html","Blog Definition","The complete definition of Blog. The term Blog and its definition. Looking for the definition of Blog?","Blog Glossary Definition","Blog",19,200,"00:00:00.031"]
[null,93,"http://www.thesearchagency.com/search-marketing-glossary/opt-out.html","Opt-Out Definition","The complete definition of Opt-Out. The term Opt-Out and its definition. Looking for the definition of Opt-Out?","Opt-Out Glossary Definition","Opt-Out",19,200,"00:00:00.031"]
[null,94,"http://www.thesearchagency.com/search-marketing-glossary/business-name-terms.html","Business Name Terms Definition","The complete definition of Business Name Terms. The term Business Name Terms and its definition. Looking for the definition of Business Name Terms?","Business Name Terms Glossary Definition","Business Name Terms",19,200,"00:00:00.031"]
[null,95,"http://www.thesearchagency.com/search-marketing-glossary/organic-listings.html","Organic Listings Definition","The complete definition of Organic Listings. The term Organic Listings and its definition. Looking for the definition of Organic Listings?","Organic Listings Glossary Definition","Organic Listings",18,200,"00:00:00.031"]
[null,96,"http://www.thesearchagency.com/search-marketing-glossary/button-exchange.html","Button Exchange Definition","The complete definition of Button Exchange. The term Button Exchange and its definition. Looking for the definition of Button Exchange?","Button Exchange Glossary Definition","Button Exchange",19,200,"00:00:00.031"]
[null,97,"http://www.thesearchagency.com/search-marketing-glossary/organic-search.html","Organic Search Definition","The complete definition of Organic Search. The term Organic Search and its definition. Looking for the definition of Organic Search?","Organic Search Glossary Definition","Organic Search",19,200,"00:00:00.016"]
[null,98,"http://www.thesearchagency.com/search-marketing-glossary/category-terms.html","Category Terms Definition","The complete definition of Category Terms. The term Category Terms and its definition. Looking for the definition of Category Terms?","Category Terms Glossary Definition","Category Terms",19,200,"00:00:00.031"]
[null,99,"http://www.thesearchagency.com/search-marketing-glossary/outbound-links.html","Outbound Links Definition","The complete definition of Outbound Links. The term Outbound Links and its definition. Looking for the definition of Outbound Links?","Outbound Links Glossary Definition","Outbound Links",18,200,"00:00:00.078"]
[null,100,"http://www.thesearchagency.com/search-marketing-glossary/click-through-rate-ctr.html","Click Through Rate (CTR) Definition","The complete definition of Click Through Rate (CTR). The term Click Through Rate (CTR) and its definition. Looking for the definition of Click Through Rate (CTR)?","Click Through Rate (CTR) Glossary Definition","Click Through Rate (CTR)",19,200,"00:00:00.078"]
[null,101,"http://www.thesearchagency.com/search-marketing-glossary/packet-sniffing.html","Packet Sniffing Definition","The complete definition of Packet Sniffing. The term Packet Sniffing and its definition. Looking for the definition of Packet Sniffing?","Packet Sniffing Glossary Definition","Packet Sniffing",19,200,"00:00:00.016"]

{"sheet":"Report Data","index":11,"n_rows":22,"n_cols":19,"rows_kept":22,"cut":false,"hidden":true,"merged":[[6,10,6,12],[11,10,11,11]]}
[]
[]
[null,"User Agent:","Mozilla/5.0 (compatible; Googlebot/2.1; +http://www.google.com/bot.html)"]
[]
[]
[]
[null,null,null,null,null,null,null,null,null,null,"Issues / Non-Issues",null,null,null,"Severity","%"]
[null,"Site Architecture Analysis Summary",null,null,null,null,null,null,null,null,"Issues",{"$f":"L10-L9","v":39},{"$f":"L8/L10","v":0.39},null,"Critical",{"$f":"Summary!G9/Summary!$G$12","v":0.27659574468085107}]
[null,null,null,null,null,null,null,null,null,null,"Non-Issues (\"Remaining Urls\")",61,{"$f":"L9/L10","v":0.61},null,"Warning",{"$f":"Summary!G10/Summary!$G$12","v":7.8014184397163122E-2}]
[null,null,null,null,null,null,null,null,null,null,"Spidered (\"Spidered Urls\")",100,null,null,"Info",{"$f":"Summary!G11/Summary!$G$12","v":0.64539007092198586}]
[]
[null,"Short Desc","Long Desc","Number","Priority",null,null,null,null,null,"Issues Only",null,null,null,"CRITICAL",null,"WARNING",null,"INFO"]
[null,"Short Meta Descriptions","Pages found with meta description tag shorter than 125 characters",37,"Critical",null,null,null,null,null,"Short Meta Descriptions",37,null,null,"Short Meta Descriptions",null,"Short Title Tags",null,"Short Meta Keywords"]
[null,"Duplicate H1 Tags","Pages found with duplicate H1 tags",2,"Critical",null,null,null,null,null,"Duplicate H1 Tags",2,null,null,"Duplicate H1 Tags",null,null,null,"URL Hyphens"]
[null,"Short Title Tags","Pages found with title tag shorter than 20 characters",11,"Warning",null,null,null,null,null,"Short Title Tags",11,null,null,null,null,null,null,"301s"]
[null,"Short Meta Keywords","Pages found with meta keyword tag shorter than 80 characters",51,"Info",null,null,null,null,null,"Short Meta Keywords",51,null,null,null,null,null,null,"Short H1 Tags"]
[null,"URL Hyphens","URLs found with six or more hyphens",3,"Info",null,null,null,null,null,"URL Hyphens",3,null,null,null,null,null,null,"Long H1 Tags"]
[null,"301s","Redirect found - Permanent - 301 Response Code",1,"Info",null,null,null,null,null,"301s",1]
[null,"Short H1 Tags","Pages found with H1 tag shorter than 15 characters",29,"Info",null,null,null,null,null,"Short H1 Tags",29]
[null,"Long H1 Tags","Pages found with H1 tag longer than 75 characters",7,"Info",null,null,null,null,null,"Long H1 Tags",7]
[null,"Remaining Urls_1","URLs without issues",61]
[null,"Spidered Urls_1","Spidered URLs (raw data)",100]